Cogmind - Beta 16.1 @@@ ROGUE MODE // 2026.03.07 @ 18:05:39 Player: Kaisercar Result: Destroyed by Striker with Plasma Lance Performance ------------- Evolutions (8) 4000 Regions Visited (30) 6000 Robots Destroyed (303) 1515 Value Destroyed (11707) 11707 Prototype IDs (61) 1220 Alien Tech Used (8) 1600 Bonus (8634) 8634 TOTAL SCORE: 34676 Bonus ------- High Alert Combat Kills 2642 Follower Combat Kills 823 Hunted by Unchained 500 Registered with UFD 300 Met Optimus in HQ 500 Met Data Miner 300 Met Zhirov 300 Met Warlord at Base 500 MAIN.C Attacked Warlord 500 Warlord Defense Kills 1644 Met Optimus at Protoforge 1000 Friendly Fire -375 Cogmind --------- Core Integrity 0/1450 Matter 202/300 Energy 575/575 System Corruption 20% Temperature Cool (0) Movement Walking (102) Location -2/Protoforge Parts ------- > --- POWER (2) -------- Reinforced Antimatter Reactor Improved Quantum Reactor > --- PROPULSION (6) --- Biometal Leg Enhanced Biometal Leg Enhanced Biometal Leg Enhanced Biometal Leg Enhanced Biometal Leg > --- UTILITY (13) ----- Advanced Heat Sink Experimental Optical Array Advanced Signal Interpreter Advanced Launcher Guidance Computer Advanced Target Analyzer Advanced Target Analyzer Experimental Core Analyzer Experimental Core Analyzer Experimental Reaction Control System Makeshift Medium Armor Plating Makeshift Medium Armor Plating Centrium Light Armor Plating Centrium Light Armor Plating > --- WEAPON (3) ------- Helical Railgun Helical Railgun Helical Railgun > --- INVENTORY (5) ---- Precision Phase Gun Precision Phase Gun Enhanced Nova Cannon KE Penetrator Overtuned Coil Gun Peak State ------------ > --- POWER ------------ Neutrino Core Improved Quantum Reactor > --- PROPULSION ------- Overtuned Armored Exoskeleton Experimental VSS Leg Experimental VSS Leg Experimental VSS Leg > --- UTILITY ---------- Scrap Suit Experimental Heat Sink Experimental Optical Array Advanced Signal Interpreter Advanced Launcher Guidance Computer Experimental Core Analyzer Experimental Core Analyzer Experimental Core Analyzer Experimental Armor Integrity Analyzer Makeshift Heavy Armor Plating Makeshift Thermal Plating > --- WEAPON ----------- Concept XC Strikerail Concept XC Strikerail Concept XC Strikerail > --- INVENTORY -------- Layered Light Armor Plating Enhanced Nova Cannon Micro-nuke Launcher Ionic Axe [Rating: 200] Favorites ----------- Power Light Nuclear Core Engine Improved Deuterium Engine Power Core Light Nuclear Core Reactor Improved Quantum Reactor Propulsion Light Treads Treads Light Treads Leg Experimental VSS Leg Wheel Compact Wheel Flight Unit Nuclear Pulse Thruster Utility Hacking Suite Device Seismic Detector Storage High-capacity Storage Unit Processor Advanced Signal Interpreter Hackware Hacking Suite Protection Hardened Light Armor Plating Artifact Phase Redirector Weapon Gauss Rifle Energy Gun Medium Laser Energy Cannon Particle Cannon Ballistic Gun Gauss Rifle Ballistic Cannon Advanced Assault Cannon Launcher Improved Grenade Launcher Impact Weapon Hammer Slashing Weapon Scythe Piercing Weapon Plasma Lance Build | -11 -10 -10 -9 -9 -8 -8 -8 -8 -6 -6 -6 -6 -6 -6 -5 -5 -5 -5 -5 -4 -4 -4 -4 -4 -3 -3 -3 -2 -2 -2 ------- Run | Yrd Mat Min Mat Min Mat Sto Rec Scr Fac Was Fac Low Low Dat Pro Fac Upp Upp Zhi Pro Fac Upp Upp War Pro Res Tes Res Qua Frg Slots Evolved 16 | . . . 2 . 2 . . . 4 . . . . . . 2 . . . . 2 . . . . 2 . 2 . . Power 1 | . . . . . . . . . . . . . . . . . . . . . . . . . . 1 . . . . Propulsion 4 | . . . . . 1 . . . 1 . . . . . . . . . . . 1 . . . . . . 1 . . Utility 11 | . . . 2 . 1 . . . 3 . . . . . . 2 . . . . 1 . . . . 1 . 1 . . Weapon . | . . . . . . . . . . . . . . . . . . . . . . . . . . . . . . . Parts Attached 281 | 7 10 8 22 5 23 22 6 2 17 . 7 . 1 . 2 12 6 . 3 1 13 2 2 8 1 8 4 5 18 66 Power 24 | 1 . . 2 1 1 3 . . 1 . 1 . . . . 1 . . 1 . 1 1 . 2 . 1 . 1 2 4 Engine 6 | 1 . . 2 1 . 2 . . . . . . . . . . . . . . . . . . . . . . . . Core 10 | . . . . . 1 1 . . 1 . 1 . . . . 1 . . . . 1 1 . 1 . . . . . 2 Reactor 8 | . . . . . . . . . . . . . . . . . . . 1 . . . . 1 . 1 . 1 2 2 Propulsion 68 | 2 2 4 5 . 5 5 3 . 8 . . . . . . 1 1 . . . 5 1 . 2 1 . 2 1 3 17 Treads 20 | 2 2 2 5 . 5 4 . . . . . . . . . . . . . . . . . . . . . . . . Leg 16 | . . . . . . . . . . . . . . . . . . . . . . . . . . . . . . 16 Wheel 5 | . . 2 . . . . 3 . . . . . . . . . . . . . . . . . . . . . . . Hover . | . . . . . . . . . . . . . . . . . . . . . . . . . . . . . . . Flight 27 | . . . . . . 1 . . 8 . . . . . . 1 1 . . . 5 1 . 2 1 . 2 1 3 1 Utility 119 | 2 2 2 7 3 7 8 3 1 7 . 5 . . . 1 8 3 . 2 1 5 . 2 3 . 5 2 2 9 29 Device 42 | 1 1 . 1 1 3 1 . . 2 . 2 . . . 1 5 2 . . 1 5 . 2 1 . 3 2 . 3 5 Storage 6 | 1 1 . 2 . . . . . . . . . . . . . . . . . . . . . . . . 1 . 1 Processor 28 | . . 2 1 1 2 2 . 1 1 . 2 . . . . 1 . . . . . . . . . . . 1 2 12 Hackware 15 | . . . 1 . 1 1 2 . 2 . 1 . . . . 2 . . 1 . . . . 1 . 1 . . 2 . Protection 27 | . . . 2 1 1 4 1 . 2 . . . . . . . 1 . 1 . . . . 1 . 1 . . 1 11 Artifact 1 | . . . . . . . . . . . . . . . . . . . . . . . . . . . . . 1 . Weapon 70 | 2 6 2 8 1 10 6 . 1 1 . 1 . 1 . 1 2 2 . . . 2 . . 1 . 2 . 1 4 16 Energy Gun 9 | . 3 . 2 . . 1 . . . . . . . . . . . . . . . . . . . . . . . 3 Energy Cannon 5 | . . . 1 . . 1 . . . . . . . . . . . . . . . . . 1 . . . . 2 . Ballistic Gun 28 | 2 1 . 3 1 6 2 . . . . . . 1 . 1 . . . . . . . . . . 1 . . . 10 Ballistic Cannon 10 | . . 2 . . 2 1 . . . . . . . . . 1 . . . . 1 . . . . . . . . 3 Launcher 11 | . 2 . . . 1 1 . 1 1 . 1 . . . . . 1 . . . 1 . . . . 1 . . 1 . Special Weapon . | . . . . . . . . . . . . . . . . . . . . . . . . . . . . . . . Impact Weapon 3 | . . . 2 . . . . . . . . . . . . . . . . . . . . . . . . . 1 . Slashing Weapon 3 | . . . . . 1 . . . . . . . . . . 1 1 . . . . . . . . . . . . . Piercing Weapon 1 | . . . . . . . . . . . . . . . . . . . . . . . . . . . . 1 . . Special Melee Weapon . | . . . . . . . . . . . . . . . . . . . . . . . . . . . . . . . Unidentified Prototypes 44 | . . . 1 . 2 4 . . 2 . 1 . 1 . . 2 . . 3 . . . . 4 . 2 1 2 6 13 Parts Lost 73 | . 1 5 4 . 1 3 . . . 2 2 . 1 . 1 4 1 1 . 3 3 2 . 2 2 . . 8 7 20 Power 7 | . . . 1 . . . . . . . 1 . . . . 1 . 1 . . 1 . . . . . . 1 1 . Propulsion 24 | . . 3 . . . 1 . . . 1 . . . . . 2 . . . . . 2 . 1 . . . 1 3 10 Utility 36 | . 1 1 3 . 1 2 . . . 1 1 . . . 1 1 1 . . 2 2 . . 1 2 . . 6 3 7 Weapon 6 | . . 1 . . . . . . . . . . 1 . . . . . . 1 . . . . . . . . . 3 Highest Loss Streak 5 | . 1 5 2 . 1 2 . . . 2 1 . 1 . 1 3 1 1 . 2 1 2 . 2 1 . . 4 4 4 To Critical Strikes 2 | . . . . . . . . . . . . . . . . . . . . . . . . . . . . 1 . 1 Average Backups 11 | 3 7 9 14 19 19 19 19 19 4 4 4 5 5 5 5 4 4 4 5 4 4 5 4 4 4 4 4 4 8 4 Power . | . 1 1 . 1 1 1 1 1 . . . 1 1 1 1 . . . . . . . . . 1 . . . 1 . Propulsion 3 | 1 2 2 6 7 6 6 6 5 . 1 1 1 1 1 1 . . . . . 1 . . . . . . . 1 1 Utility 4 | . 1 2 2 4 7 8 8 8 3 3 2 3 3 3 3 2 3 3 3 2 2 4 3 3 1 1 1 1 1 . Weapon 3 | . 2 3 4 6 4 3 3 3 . . . . . . . . 1 . 1 1 1 1 1 1 1 2 2 2 3 2 Tool/Special . | . . . . . . . . . . . . . . . . . . . . . . . . . . . . . . . Unused Backups 46 | . . . 1 1 10 8 . 3 5 . . . . . . 1 . 1 . . 1 . 1 2 . . 1 . . 11 Power 4 | . . . . . 1 1 . . 1 . . . . . . . . 1 . . . . . . . . . . . . Propulsion 15 | . . . . 1 2 4 . 1 . . . . . . . 1 . . . . 1 . . . . . . . . 5 Utility 19 | . . . 1 . 4 3 . 1 3 . . . . . . . . . . . . . 1 2 . . . . . 4 Weapon 5 | . . . . . 3 . . . 1 . . . . . . . . . . . . . . . . . 1 . . . Tool/Special 3 | . . . . . . . . 1 . . . . . . . . . . . . . . . . . . . . . 2 Average Slot Usage (%) 93 | . 96 98 99 99 92 98 99 99 93 97 99 100 92 93 99 94 83 88 83 82 88 85 81 87 83 87 84 78 71 83 Engine 4 | . 14 14 10 11 4 8 7 . . . . . . . . . . . . . . . . . . . . . . . Core 2 | . . . . . 4 1 1 9 6 6 5 6 6 6 6 5 5 2 . . . 5 5 4 . . . . . 1 Reactor 1 | . . . . . . . . . . . . . . . . . . . 1 5 4 . . . 5 4 4 6 4 6 Treads 11 | . 28 26 22 22 26 26 5 . . . . . . . . . . . . . . . . . . . . . . . Leg 1 | . . . . . . . . . . . . . . . . . . . . . . . . . . . . . . 17 Wheel 3 | . . . . . . . 21 27 . . . . . . . . . . . . . . . . . . . . . . Flight 7 | . . . . . . . . . 25 26 26 26 25 25 25 21 16 22 22 22 24 20 20 24 20 22 19 19 20 . Device 8 | . 10 8 . 14 13 8 . . 12 10 7 6 5 6 6 15 12 11 11 11 23 25 25 19 16 17 13 11 5 5 Storage 6 | . 14 14 11 11 9 9 9 9 . . . . . . . . . . . . . . . . . . . . 4 1 Processor 11 | . . 4 11 6 4 13 9 9 10 13 13 13 12 12 12 15 16 16 16 16 15 15 15 15 15 13 10 10 14 26 Hackware 12 | . . . 10 . 3 6 19 27 25 26 30 33 31 31 31 22 22 22 22 19 15 15 15 17 20 19 22 19 14 1 Protection 5 | . . . 9 11 7 6 7 . 2 . . . . . . . 3 5 5 5 1 . . 1 . . 6 3 2 11 Energy Gun 1 | . 7 12 1 . . . . . . . . . . . . . . . . . . . . . . . . . . 1 Ballistic Gun 8 | . 19 . 9 20 16 14 16 . . . . . 2 6 11 4 . . . . . . . . . . . . . 7 Ballistic Cannon 2 | . . 14 4 . 1 2 . 9 . . . . . . . 2 . . . . . . . . . . . . . . Slashing Weapon 2 | . . . . . . 1 . 8 6 6 6 6 6 6 6 5 5 8 3 . 4 5 1 . 5 4 4 4 3 . Peak Build Rating 200 | 7 8 8 20 23 39 39 32 34 62 62 67 67 67 67 71 88 85 89 87 86 109 103 97 125 121 138 138 155 156 200 Average Rating 61 | 5 7 7 15 20 37 36 30 33 52 58 63 67 66 67 70 84 77 82 79 79 99 93 90 114 113 125 121 133 124 174 On Entrance 66 | . 7 8 8 16 23 38 31 31 34 62 58 67 67 67 67 68 76 85 79 81 74 102 93 90 116 108 124 131 121 118 Avg Prop Armor Cover (%) 7 | . . 5 . . . . 9 . 3 . . . . . . . . 8 8 . . . . . . . . . . 7 Naked Turns . | . . . . . . . . . . . . . . . . . . . . . . . . . . . . . . . Heaviest Build 121 | 13 21 21 60 62 83 67 61 53 18 18 18 16 16 15 19 23 18 18 22 23 28 23 23 39 27 34 43 46 45 121 Greatest Support 174 | 40 40 40 43 43 66 64 60 42 23 22 23 23 28 23 23 28 25 25 25 33 40 35 25 35 34 35 43 53 50 174 Greatest Overweight (x) 2 | 1 . 1 1 1 1 1 2 1 . . . . . . . . . . . . . . . 1 . . 1 . 1 2 Average Overweight (x) . | . . . . 1 . . 1 1 . . . . . . . . . . . . . . . . . . . . . . Largest Inventory Capacity 20 | 8 10 10 20 20 20 20 20 20 20 5 5 5 5 5 5 5 5 5 5 5 5 5 5 5 5 5 5 10 10 10 Average Capacity 12 | 7 8 10 15 20 20 20 20 20 5 5 5 5 5 5 5 5 5 5 5 5 5 5 5 5 5 5 5 5 10 6 Most Carried 20 | 4 10 10 20 20 20 20 20 20 20 5 5 5 5 5 5 5 5 5 5 5 5 5 5 5 5 5 5 6 10 10 Average Carried 12 | 3 7 9 14 19 19 19 19 19 4 4 4 5 5 5 5 4 4 4 4 4 4 4 4 4 4 4 4 4 8 4 Final Capacity 20 | 8 10 10 20 20 20 20 20 20 5 5 5 5 5 5 5 5 5 5 5 5 5 5 5 5 5 5 5 10 10 5 Final Carried 20 | 4 10 9 19 20 20 20 20 20 5 4 5 5 5 5 5 5 5 5 5 3 5 5 5 5 5 5 5 5 10 5 Scrap Suit Usage (%) 1 | . . . . . . . . . . . . . . . . . . . . . . . . . . . . . . 1 Class Distribution -------------------- 39% | Mutant 19% | Hacker-Scout 12% | Hacker-Mutant 10% | Scavenger-Mutant 7% | Scavenger-Gunner 5% | Hacker-Ninja Dominant Class ---------------- Mutant | -10/Materials Mutant | -10/Mines Mutant | -9/Materials Mutant | -9/Mines Mutant | -8/Materials Mutant | -8/Storage Hacker-Mutant | -8/Recycling Hacker-Mutant | -8/Scraptown Hacker-Scout | -6/Factory Hacker-Scout | -6/Waste Hacker-Scout | -6/Factory Hacker-Scout | -6/Lower Caves Hacker-Scout | -6/Lower Caves Hacker-Scout | -6/Data Miner Hacker-Scout | -5/Proximity Caves Hacker-Scout | -5/Factory Hacker-Scout | -5/Upper Caves Hacker-Scout | -5/Upper Caves Hacker-Scout | -5/Zhirov Hacker-Scout | -4/Proximity Caves Hacker-Ninja | -4/Factory Hacker-Ninja | -4/Upper Caves Hacker-Scout | -4/Upper Caves Hacker-Scout | -4/Warlord Hacker-Ninja | -3/Proximity Caves Hacker-Ninja | -3/Research Wizard-Ninja | -3/Testing Wizard-Ninja | -2/Research Hacker-Scout | -2/Quarantine Scavenger-Gunner | -2/Protoforge Resources | -11 -10 -10 -9 -9 -8 -8 -8 -8 -6 -6 -6 -6 -6 -6 -5 -5 -5 -5 -5 -4 -4 -4 -4 -4 -3 -3 -3 -2 -2 -2 ----------- Run | Yrd Mat Min Mat Min Mat Sto Rec Scr Fac Was Fac Low Low Dat Pro Fac Upp Upp Zhi Pro Fac Upp Upp War Pro Res Tes Res Qua Frg Matter Collected 10063 | 288 182 228 741 313 1337 1215 424 93 153 . 244 . 145 . 65 . 336 109 . . 260 271 10 101 57 129 145 12 256 2949 Remotely 63 | . . . . . . . . . . . . . . . . . 63 . . . . . . . . . . . . . Salvage Created 12927 | 132 615 164 1048 217 1791 1598 741 . 244 . 331 . 44 . . 37 208 160 . 30 398 185 . 376 30 169 145 50 211 4003 Parts 705 | 7 51 13 67 17 102 95 31 . 12 . 12 . 4 . . 3 4 4 . 2 12 8 . 15 7 5 4 5 12 213 Haulers Intercepted 20 | . 1 . 3 . 5 5 . . 1 . 2 . . . . . . . . . 2 . . . . 1 . . . . Recyclers Shooed 12 | . . 1 5 . 2 . 4 . . . . . . . . . . . . . . . . . . . . . . . Parts Field Recycled . | . . . . . . . . . . . . . . . . . . . . . . . . . . . . . . . Retrieved Matter . | . . . . . . . . . . . . . . . . . . . . . . . . . . . . . . . Parts Self-Destructed 14 | . . . . . . . . . . . . . 2 . . . 5 2 . . . 2 . . 3 . . . . . Prevented 1 | . . . . . . . . . . . . . . . . . 1 . . . . . . . . . . . . . Parts Restored . | . . . . . . . . . . . . . . . . . . . . . . . . . . . . . . . Kills | -11 -10 -10 -9 -9 -8 -8 -8 -8 -6 -6 -6 -6 -6 -6 -5 -5 -5 -5 -5 -4 -4 -4 -4 -4 -3 -3 -3 -2 -2 -2 ------- Run | Yrd Mat Min Mat Min Mat Sto Rec Scr Fac Was Fac Low Low Dat Pro Fac Upp Upp Zhi Pro Fac Upp Upp War Pro Res Tes Res Qua Frg Combat Hostiles Destroyed 212 | . 14 7 18 10 25 26 4 . 3 . 6 . 3 . . . . 2 . 4 . 7 . 14 4 . . 3 4 58 Guns 113 | . 9 1 8 8 22 21 4 . . . . . . . . . . . . . . . . . . . . . . 40 Cannons 37 | . . 3 6 . 1 2 . . . . . . . . . . . . . . . . . 10 . . . . . 15 AOE 62 | . 5 3 4 2 2 3 . . 3 . 6 . 3 . . . . 2 . 4 . 7 . 4 4 . . 3 4 3 Classes Destroyed 23 | 2 6 1 3 1 1 . . . . . . . . . . . . 2 . . . . . 3 . . . . . 4 Worker 12 | . 1 . 3 . 5 2 . . 1 . . . . . . . . . . . . . . . . . . . . . Builder 10 | . . . 1 . . 3 1 . . . 3 . . . . . . . . . . . . . . . . . 2 . Tunneler 10 | 2 3 . 1 1 2 . . . . . . . . . . . . . . . . . . . . 1 . . . . Hauler 22 | . 1 . 3 . 5 5 . . 1 . 2 . . . . . . . . . 2 . . . . 1 . . . 2 Recycler 18 | 1 1 1 2 . 3 . 7 . . . . . . . . . . . . . 1 . . . . . 1 . 1 . Minesweeper 1 | . . . . . . . . . . . . . . . . . . 1 . . . . . . . . . . . . Mechanic 2 | . 1 . . . . . . . . . . . . . . . . . . . . . . . . . . . . 1 Operator 7 | . 2 . 2 . 1 2 . . . . . . . . . . . . . . . . . . . . . . . . Drone 2 | . . . . . . . . . . . . . . . . . . . . . . . . . . . . . . 2 Watcher 15 | . . . 5 . 2 . . . 2 . 2 . . . . 1 . . . . 1 . . . . 1 . . . 1 Swarmer 66 | . 6 3 3 3 1 3 . . 3 . 6 . 3 . . . . . . 4 . 5 . 4 4 . . 3 4 11 Saboteur 1 | . . . . . . . . . . . . . . . . . . . . . . . . . . . . . . 1 Grunt 55 | . 8 2 9 3 13 11 . . . . . . . . . . . . . . . 1 . . . . . . . 8 Brawler 8 | . . . 1 . 2 . . . . . . . . . . . . . . . . . . 2 . . . . . 3 Duelist 2 | . . . . . . . . . . . . . . . . . . . . . . . . 1 . . . . . 1 Protector 4 | . . . . . . . . . . . . . . . . . . . . . . . . 2 . . . . . 2 Sentry 32 | . . 2 5 . 8 12 4 . . . . . . . . . . . . . . 1 . . . . . . . . Hunter 8 | . . . . . . . . . . . . . . . . . . 2 . . . . . 3 . . . . . 3 Programmer 12 | . . . . . . . . . . . . . . . . . . . . . . . . 2 . . . . . 10 Heavy 1 | . . . . . 1 . . . . . . . . . . . . . . . . . . . . . . . . . Striker 6 | . . . . . . . . . . . . . . . . . . . . . . . . . . . . . . 6 Executioner 11 | . . . . . . . . . . . . . . . . . . . . . . . . . . . . . . 11 Decomposer 2 | . . . . . . . . . . . . . . . . . . 1 . . . 1 . . . . . . . . Assembled 4 | . . . . 4 . . . . . . . . . . . . . . . . . . . . . . . . . . Best Kill Streak 10 | 3 5 3 6 3 4 10 3 . 4 . 4 . 3 . . 1 . 2 . 4 1 4 . 4 4 1 1 2 4 8 Combat Bots Only 8 | . 3 3 3 3 3 7 1 . 3 . 3 . 3 . . . . 2 . 4 . 4 . 4 4 . . 2 4 8 Max Kills in Single Turn 5 | 1 2 1 4 2 3 5 1 . 3 . 4 . 3 . . 1 . 1 . 2 1 2 . 2 2 1 1 2 2 3 Gunslinging 1 | . . . . . . . . . . . . . . . . . . . . . . . . . . . . . . 1 Exploded 3 | . 2 1 2 2 2 3 . . 2 . 3 . 3 . . . . 1 . 2 . 2 . 2 2 . . 2 2 2 Melee . | . . . . . . . . . . . . . . . . . . . . . . . . . . . . . . . Uniques/NPCs Destroyed . | . . . . . . . . . . . . . . . . . . . . . . . . . . . . . . . Combat | -11 -10 -10 -9 -9 -8 -8 -8 -8 -6 -6 -6 -6 -6 -6 -5 -5 -5 -5 -5 -4 -4 -4 -4 -4 -3 -3 -3 -2 -2 -2 -------- Run | Yrd Mat Min Mat Min Mat Sto Rec Scr Fac Was Fac Low Low Dat Pro Fac Upp Upp Zhi Pro Fac Upp Upp War Pro Res Tes Res Qua Frg Hostile Shots Fired 1210 | . 51 49 56 14 115 136 10 . 13 1 27 6 3 . 3 24 6 18 . 41 20 11 4 24 26 4 4 66 37 441 Missed 481 | . 16 9 24 8 31 43 6 . 5 . 18 2 2 . 2 16 2 11 . 14 6 5 3 11 17 2 4 37 11 176 Deflected 2 | . . . . . . . . . . . . . . . . . . . . . . . . . . . . . . 2 Hits 729 | . 35 40 32 6 84 93 4 . 8 1 9 4 1 . 1 8 4 7 . 27 14 6 1 13 9 2 . 29 26 265 Melee 12 | . . . . . 4 . . . . 1 . . . . . . . . . . . . . . . . . . . 7 Projectile 717 | . 35 40 32 6 80 93 4 . 8 . 9 4 1 . 1 8 4 7 . 27 14 6 1 13 9 2 . 29 26 258 AOE 1 | . . . . . . . . . . . . . . . . . . . . . . . . 1 . . . . . . Critical Strikes 35 | . . . 1 . 5 7 . . . . . . . . . . . 1 . 1 . . . . . . . 2 1 17 Part Disruptions 1 | . . . . . . . . . . . . . . . . . . . . . . . . . . . . . . 1 Damage Taken 16376 | . 426 567 761 123 1207 1210 62 . 67 41 398 49 31 . 18 333 99 90 . 459 485 187 17 214 192 54 . 762 806 7718 Core 2903 | . 104 94 207 9 21 140 18 . 37 19 179 . . . . 20 . . . 206 176 82 . 75 14 . . 237 125 1140 Absorbed by Shields 568 | . . . . . 154 206 . . . . . . . . . . . . . . . . . 127 . . . . . 81 Redirected to Shielding 210 | . . . . . . . . . . . . . . . . . . 22 . 11 75 . . . . . . 102 . . Ignored by Resistances 33 | . . . . . . . . . . . . . . . . . . . . . . . . . . . . . . 33 Regen/Repaired (Parts) 140 | . . . . . 62 . . . . . . . . . . . . . . . . . . 78 . . . . . . Core Remaining (%) 68 | 100 . 20 . 46 . . . 67 . . . . . . 72 . . . . 77 . . . . 69 . 100 . . . Volleys Fired 712 | 9 74 20 74 19 117 91 27 . 5 . 3 . 4 . 2 9 . 6 . 4 . 4 . 36 3 . . 2 3 200 Largest 3 | 2 2 2 2 2 2 2 2 . 1 . 1 . 1 . 2 1 . 1 . 1 . 1 . 1 1 . . 1 1 3 Hottest 252 | 40 60 80 124 91 68 68 53 . 36 . 36 . 36 . 63 47 . 43 . 43 . 49 . 100 49 . . 49 120 252 Shots Fired 1349 | 18 142 36 130 40 227 178 54 . 5 . 6 . 4 . 4 9 . 6 . 5 . 4 . 36 3 . . 2 3 437 Gun 1055 | 18 137 9 73 38 203 163 54 . . . . . . . 4 . . . . . . . . . . . . . . 356 Cannon 229 | . . 23 54 1 20 13 . . . . . . . . . 9 . . . . . . . 30 . . . . 1 78 Launcher 65 | . 5 4 3 1 4 2 . . 5 . 6 . 4 . . . . 6 . 5 . 4 . 6 3 . . 2 2 3 Special . | . . . . . . . . . . . . . . . . . . . . . . . . . . . . . . . Kinetic 1081 | 18 113 23 79 38 223 176 54 . . . . . . . 4 9 . . . . . . . . . . . . . 344 Thermal 172 | . 23 9 48 1 . . . . . . . . . . . . . . . . . . . . . . . . 1 90 Explosive 65 | . 5 4 3 1 4 2 . . 5 . 6 . 4 . . . . 6 . 5 . 4 . 6 3 . . 2 2 3 Electromagnetic 1 | . 1 . . . . . . . . . . . . . . . . . . . . . . . . . . . . . Entropic 30 | . . . . . . . . . . . . . . . . . . . . . . . . 30 . . . . . . Robot Hit Streak 29 | 4 10 11 12 4 16 21 8 . 2 . 3 . . . . . . 3 . 2 . 3 . 7 3 . . . 5 29 Robot Miss Streak 5 | 1 5 2 3 3 5 3 3 . . . 1 . . . . . . 2 . 1 . . . 3 . . . . . 5 Penetration Max 2 | . . . . . 1 1 1 . . . . . . . . . . . . . . . . 1 . . . . . 2 Secondary Targets 10 | . 1 . 1 1 . 1 . . . . . . . . . . . . . . . . . . . . . . . 6 Max Gunslinging Chain 1 | . 1 . 1 1 . 1 . . . . . . . . . . . . . . . . . . . . . . . 1 Shots Hit Robots 944 | 13 95 26 92 19 147 128 33 . 13 . 21 . . . . 1 3 8 . 3 8 4 . 20 1 8 1 . 9 291 Core Hits 514 | 6 45 11 54 17 63 57 15 . 11 . 14 . 3 . . 1 1 7 . 8 3 8 . 22 5 2 . 6 10 145 Critical Kills 20 | . . . 1 . 1 1 . . . . . . . . . . . . . . . . . . . . . . . 17 Critical Parts Destroyed 24 | . 3 . 1 . . 3 . . . . . . . . . . . . . . . . . . . . . . . 17 Critical Strikes 69 | . 3 3 5 . 1 6 . . . . 1 . . . . . . . . . . . . 11 . 2 . . . 37 Burn 5 | . . 1 3 . . . . . . . . . . . . . . . . . . . . . . . . . . 1 Destroy 46 | . 3 . 1 . 1 5 . . . . . . . . . . . . . . . . . . . . . . . 36 Blast 3 | . . 2 . . . 1 . . . . . . . . . . . . . . . . . . . . . . . . Smash 1 | . . . 1 . . . . . . . . . . . . . . . . . . . . . . . . . . . Sever 3 | . . . . . . . . . . . 1 . . . . . . . . . . . . . . 2 . . . . Sunder 11 | . . . . . . . . . . . . . . . . . . . . . . . . 11 . . . . . . Melee Attacks 364 | . . . 15 . 4 11 . . 57 . 51 1 6 . 16 50 15 12 . 1 42 2 . . 7 17 6 25 21 5 Impact 15 | . . . 15 . . . . . . . . . . . . . . . . . . . . . . . . . . . Slashing 349 | . . . . . 4 11 . . 57 . 51 1 6 . 16 50 15 12 . 1 42 2 . . 7 17 6 25 21 5 Piercing . | . . . . . . . . . . . . . . . . . . . . . . . . . . . . . . . Sneak Attacks 27 | . . . 5 . 1 . . . 1 . 6 . . . . . . 2 . . 3 1 . . . 2 1 . 5 . Combat Hostiles . | . . . . . . . . . . . . . . . . . . . . . . . . . . . . . . . Follow-up Attacks . | . . . . . . . . . . . . . . . . . . . . . . . . . . . . . . . Damage Inflicted 35826 | 103 1114 652 2120 462 3562 2997 635 . 784 . 1815 . 127 . . 35 227 811 . 622 638 983 . 3350 592 509 76 325 1384 11903 Guns 16816 | 103 833 75 817 286 2824 2582 635 . . . . . . . . . . . . . . . . . . . . . . 8661 Cannons 5663 | . . 357 651 21 269 163 . . . . . . . . . . . . . . . . . 2123 . . . . . 2079 Explosions 8606 | . 276 192 285 136 322 236 . . 332 . 872 . 127 . . . . 413 . 622 . 796 . 1227 592 . . 325 751 1102 Melee 4471 | . . . 309 . 64 . . . 452 . 943 . . . . 35 227 398 . . 638 187 . . . 509 76 . 633 . Ramming 270 | . 5 28 58 19 83 16 . . . . . . . . . . . . . . . . . . . . . . . 61 Kinetic 16986 | 103 618 357 913 286 3093 2745 635 . . . . . . . . . . . . . . . . . . . . . . 8236 Thermal 3835 | . 202 75 555 21 . . . . 86 . 392 . . . . . . . . . . . . . . . . . . 2504 Explosive 8128 | . 276 192 285 136 322 236 . . 246 . 480 . 127 . . . . 413 . 622 . 796 . 1227 592 . . 325 751 1102 Electromagnetic 13 | . 13 . . . . . . . . . . . . . . . . . . . . . . . . . . . . . Impact 309 | . . . 309 . . . . . . . . . . . . . . . . . . . . . . . . . . . Slashing 4162 | . . . . . 64 . . . 452 . 943 . . . . 35 227 398 . . 638 187 . . . 509 76 . 633 . Piercing . | . . . . . . . . . . . . . . . . . . . . . . . . . . . . . . . Entropic 2123 | . . . . . . . . . . . . . . . . . . . . . . . . 2123 . . . . . . Highest Corruption 20 | . 1 1 8 8 2 2 2 . . 5 7 7 7 7 7 5 5 5 5 5 . . . . . . . . 4 20 Average Corruption 5 | . 1 1 8 8 1 2 2 . . 5 5 7 7 7 7 5 5 5 5 5 . . . . . . . . 3 13 Corruption Purged . | . . . . . . . . . . . . . . . . . . . . . . . . . . . . . . . Corruption Blocked . | . . . . . . . . . . . . . . . . . . . . . . . . . . . . . . . Effects 299 | . . 6 2 41 30 21 12 . . . 19 4 9 . 7 6 7 13 3 4 . . . . . . . . 5 110 Message Errors 65 | . . . 1 11 9 2 3 . . . 5 2 2 . 2 . 2 5 2 2 . . . . . . . . . 17 Matter Fused 77 | . . 2 . 11 9 9 3 . . . 3 1 2 . . 3 3 2 . . . . . . . . . . 2 27 Heat Flow Errors 37 | . . 1 1 5 4 2 1 . . . 2 1 1 . 3 . 1 1 1 1 . . . . . . . . . 12 Energy Discharges 37 | . . 1 . 6 2 3 1 . . . 4 . 2 . 2 1 . 3 . . . . . . . . . . 2 10 Parts Rejected 7 | . . 1 . . 1 1 . . . . . . . . . 1 . . . . . . . . . . . . . 3 Parts Fused 1 | . . . . . 1 . . . . . . . . . . . . . . . . . . . . . . . . . Data Loss (minor) 28 | . . . . 4 2 1 3 . . . 2 . . . . 1 . 1 . . . . . . . . . . 1 13 Data Loss (major) 11 | . . . . 1 1 1 1 . . . . . 1 . . . . 1 . . . . . . . . . . . 5 Misfires 9 | . . 1 . 3 1 . . . . . 3 . . . . . . . . 1 . . . . . . . . . . Alerts 5 | . . . . . . . . . . . . . 1 . . . 1 . . . . . . . . . . . . 3 Misdirections 3 | . . . . . . . . . . . . . . . . . . . . . . . . . . . . . . 3 Weapon Failures 19 | . . . . . . 2 . . . . . . . . . . . . . . . . . . . . . . . 17 Overload Shots . | . . . . . . . . . . . . . . . . . . . . . . . . . . . . . . . Overflow Damage 1820 | . . 2 42 . 3 . . . 59 . 286 . . . . . 83 185 . 36 115 252 . 217 60 82 46 11 227 114 Projectiles 171 | . . . . . 3 . . . . . . . . . . . . . . . . . . 142 . . . . . 26 Explosions 644 | . . 2 . . . . . . 23 . 176 . . . . . . . . 36 . 121 . 75 60 . . 11 52 88 Melee 1005 | . . . 42 . . . . . 36 . 110 . . . . . 83 185 . . 115 131 . . . 82 46 . 175 . Knockbacks 10 | . . 1 5 1 3 . . . . . . . . . . . . . . . . . . . . . . . . . Impact 3 | . . . 2 1 . . . . . . . . . . . . . . . . . . . . . . . . . . Kinetic 6 | . . 1 2 . 3 . . . . . . . . . . . . . . . . . . . . . . . . . Secondary 1 | . . . 1 . . . . . . . . . . . . . . . . . . . . . . . . . . . Self-Inflicted Damage 420 | . . 4 7 25 . . . . . . 221 . . . . . . . . 26 . 85 . 11 41 . . . . . Shots 11 | . . 1 1 1 . . . . . . 3 . . . . . . . . 1 . 2 . 1 1 . . . . . Rammed 31 | . 3 6 9 2 8 3 . . . . . . . . . . . . . . . . . . . . . . . . Targets Rammed 40 | . 4 7 10 2 11 3 . . . . . . . . . . . . . . . . . . . . . . . 3 Kicked 3 | . . . . . . . . . . . . . . . . . . . . . . . . . . . . . . 3 Crushed 6 | . 1 1 1 . 3 . . . . . . . . . . . . . . . . . . . . . . . . . Highest Temperature 371 | . 76 163 146 160 371 273 107 . . . 261 241 106 . 276 3 136 84 155 84 5 . . 22 . . 10 202 192 224 Average Temperature 57 | . 19 48 42 41 83 32 15 . . . 81 128 42 . 135 3 68 49 101 20 5 . . 7 . . 7 87 70 59 Received Heat Transfer 2328 | . 162 132 186 27 622 589 27 . 6 . 12 . 12 . 9 36 9 . . 58 54 . 9 . . 9 . 27 81 261 Effects 1 | . . . . . 1 . . . . . . . . . . . . . . . . . . . . . . . . . Interference 1 | . . . . . 1 . . . . . . . . . . . . . . . . . . . . . . . . . Siege Activations . | . . . . . . . . . . . . . . . . . . . . . . . . . . . . . . . Martial Activations . | . . . . . . . . . . . . . . . . . . . . . . . . . . . . . . . Shielding Activations 1 | . . . . . . . . . . . . . . . . . . . . . . . . . . . . . . 1 Total Turns 18 | . . . . . . . . . . . . . . . . . . . . . . . . . . . . . . 18 Longest Duration 18 | . . . . . . . . . . . . . . . . . . . . . . . . . . . . . . 18 Robots Disrupted . | . . . . . . . . . . . . . . . . . . . . . . . . . . . . . . . Combat Hostiles . | . . . . . . . . . . . . . . . . . . . . . . . . . . . . . . . Robots Corrupted 1 | . . . 1 . . . . . . . . . . . . . . . . . . . . . . . . . . . Combat Hostiles . | . . . . . . . . . . . . . . . . . . . . . . . . . . . . . . . Parts Fried 3 | . . . 2 . . . . . . . . . . . . . . . . . . . . . . . . . . 1 Impact Corruptions 2 | . . . 2 . . . . . . . . . . . . . . . . . . . . . . . . . . . Robots Melted . | . . . . . . . . . . . . . . . . . . . . . . . . . . . . . . . Combat Hostiles . | . . . . . . . . . . . . . . . . . . . . . . . . . . . . . . . Parts Melted 5 | . . 1 3 . . . . . . . . . . . . . . . . . . . . . . . . . . 1 Heat Transferred 4759 | . 450 296 1480 37 . . . . 100 . 200 . . . . . . . . . . . . . . . . . . 2196 Parts Sabotaged . | . . . . . . . . . . . . . . . . . . . . . . . . . . . . . . . Parts Stolen . | . . . . . . . . . . . . . . . . . . . . . . . . . . . . . . . Parts Stripped . | . . . . . . . . . . . . . . . . . . . . . . . . . . . . . . . Power Chain Reactions . | . . . . . . . . . . . . . . . . . . . . . . . . . . . . . . . Alert | -11 -10 -10 -9 -9 -8 -8 -8 -8 -6 -6 -6 -6 -6 -6 -5 -5 -5 -5 -5 -4 -4 -4 -4 -4 -3 -3 -3 -2 -2 -2 ------- Run | Yrd Mat Min Mat Min Mat Sto Rec Scr Fac Was Fac Low Low Dat Pro Fac Upp Upp Zhi Pro Fac Upp Upp War Pro Res Tes Res Qua Frg Maximum Alert Level 5 | . . . 1 . 1 2 . . 1 . 1 . . . . . . . . . . . . . . . . 2 2 5 Low Security (%) 61 | 100 100 100 95 100 34 12 100 . 99 100 66 . . . . 100 . . . . 100 . . . . 100 100 58 11 . Level 1 23 | . . . 4 . 65 74 . . . . 33 . . . . . . . . . . . . . . . . 25 74 14 Level 2 2 | . . . . . . 13 . . . . . . . . . . . . . . . . . . . . . 16 13 5 Level 3 3 | . . . . . . . . . . . . . . . . . . . . . . . . . . . . . . 21 Level 4 7 | . . . . . . . . . . . . . . . . . . . . . . . . . . . . . . 52 Level 5 . | . . . . . . . . . . . . . . . . . . . . . . . . . . . . . . 6 High Security . | . . . . . . . . . . . . . . . . . . . . . . . . . . . . . . . Max Security . | . . . . . . . . . . . . . . . . . . . . . . . . . . . . . . . Peak Influence 1658 | 5 112 113 219 145 395 495 143 . 207 64 227 . . . . 81 . . . . 126 . . . . 110 78 475 503 1658 Initial 275 | . . 19 . 70 . 103 123 . . 64 23 . . . . 28 . . . . 126 . . . . 70 52 24 275 272 Average 255 | 1 40 26 46 18 234 291 42 . 55 48 132 . . . . 34 . . . . 41 . . . . 92 51 208 275 1077 Influence Increases 10420 | 15 451 190 694 165 1120 946 256 . 410 . 643 . 85 . 75 314 15 75 . 270 202 150 . 511 135 104 72 666 588 2268 Destroy 0b10 Robot/C 4420 | . 280 140 360 120 620 520 80 . 60 . 120 . 60 . . . . 40 . 80 . 140 . 380 80 . . 60 80 1200 Destroy 0b10 Robot/NC 540 | 15 45 5 85 5 95 65 40 . 20 . 35 . . . . 5 15 10 . . 20 . . 10 . 15 5 . 15 35 Destroy Leader 898 | . 82 20 116 30 184 160 . . 16 . 28 . 10 . . 2 . 10 . 10 4 10 . . 10 4 . 10 . 192 Allied During Kill 287 | . . . . 5 51 . . . . . . . . . . . . . . . . . . 106 . . . . . 125 Successful Hack 213 | . 16 . 36 . 16 7 15 . 41 . 42 . . . . 14 . . . . . . . . . 7 12 5 . 2 Select Force Hacks 180 | . . . . . . . 120 . 30 . . . . . . . . . . . . . . . . 30 . . . . Disable Machine 555 | . . . 30 . 45 60 . . 60 . 165 . . . . 15 . . . . 15 . . . . . . 15 105 45 Destroy Structure 962 | . 28 25 22 5 49 44 1 . 48 . 88 . . . . 98 . . . . 58 . . . . 18 10 141 63 264 Partial Spotted 270 | . . . . . . . . . 45 . 30 . . . . 30 . . . . 45 . . . . . 15 30 15 60 Lose Combat Pursuer 1995 | . . . 45 . 60 90 . . 90 . 135 . 15 . 75 150 . 15 . 180 60 . . 15 45 30 30 405 210 345 Miscellaneous 100 | . . . . . . . . . . . . . . . . . . . . . . . . . . . . . 100 . Influence Decreases 8762 | 15 399 242 513 346 874 876 572 . 227 149 493 129 140 . 30 304 60 85 . 70 371 141 40 206 335 115 122 220 593 1095 Entered New Map 1655 | . . 33 . 111 . 143 193 . . 119 11 69 11 . . 17 21 2 . . 74 13 8 . 305 35 42 20 215 213 Time Decay 5567 | 15 398 199 463 235 654 553 314 . 227 10 312 60 119 . 20 200 39 83 . 40 200 108 32 146 20 80 80 120 198 642 Search Patrol Dispatched 100 | . . . . . . . . . . . . . . . . . . . . . . . . . . . . . 100 . Lost Part 605 | . 1 10 20 . 10 30 . . . 20 20 . 10 . 10 14 . . . 30 30 20 . 20 10 . . 80 70 200 Lost Ally 150 | . . . . . 60 . . . . . . . . . . . . . . . . . . 40 . . . . 10 40 Purge Threat 685 | . . . 30 . 150 150 65 . . . 150 . . . . 73 . . . . 67 . . . . . . . . . Squads Dispatched 80 | . 5 . 2 . 8 4 . . 11 . 11 . . . . 8 . . . . 8 . . . 1 3 1 8 2 8 Investigation 40 | . 2 . . . 3 . . . 9 . 7 . . . . 7 . . . . 5 . . . . 2 . . . 5 Extermination 12 | . . . . . . . . . 1 . 3 . . . . 1 . . . . 2 . . . . 1 1 2 1 . Reinforcement 20 | . 3 . 2 . 2 1 . . 1 . . . . . . . . . . . 1 . . . . . . 6 1 3 Assault 1 | . . . . . . . . . . . . . . . . . . . . . . . . . 1 . . . . . Garrison 7 | . . . . . 3 3 . . . . 1 . . . . . . . . . . . . . . . . . . . Intercept . | . . . . . . . . . . . . . . . . . . . . . . . . . . . . . . . Searches Triggered 1 | . . . . . . . . . . . . . . . . . . . . . . . . . . . . . 1 . Construction Impeded 1 | . . . . . . . . . . . . . . . . . . . . . . . . . . . . . 1 . Haulers Reinforced . | . . . . . . . . . . . . . . . . . . . . . . . . . . . . . . . Active Scanning Responses . | . . . . . . . . . . . . . . . . . . . . . . . . . . . . . . . Cargo Convoy Interrupts . | . . . . . . . . . . . . . . . . . . . . . . . . . . . . . . . Stealth | -11 -10 -10 -9 -9 -8 -8 -8 -8 -6 -6 -6 -6 -6 -6 -5 -5 -5 -5 -5 -4 -4 -4 -4 -4 -3 -3 -3 -2 -2 -2 --------- Run | Yrd Mat Min Mat Min Mat Sto Rec Scr Fac Was Fac Low Low Dat Pro Fac Upp Upp Zhi Pro Fac Upp Upp War Pro Res Tes Res Qua Frg Distress Signals 25 | . 1 . 2 . 3 2 . . . . 1 . . . . 1 . . . . . . . 1 . 1 1 3 1 8 Communications Jammed 10 | . . . . . . 3 . . . . . . . . . . . . . . . . . . . . 7 . . . Distress Signals 10 | . . . . . . 3 . . . . . . . . . . . . . . . . . . . . 7 . . . Times Spotted 612 | . 29 7 32 11 43 39 3 . 14 4 21 2 1 . 6 17 2 4 . 17 11 7 3 42 13 5 5 58 25 191 Peak Tracking Total 31 | . 4 3 4 3 4 9 1 . 3 4 8 2 1 . 3 5 1 2 . 8 3 4 3 14 8 3 4 31 9 16 Tactical Retreats 64 | . . . 2 1 3 5 . . 4 . 4 . 1 . 2 6 1 1 . 3 3 . . 1 2 2 1 7 5 10 Traps | -11 -10 -10 -9 -9 -8 -8 -8 -8 -6 -6 -6 -6 -6 -6 -5 -5 -5 -5 -5 -4 -4 -4 -4 -4 -3 -3 -3 -2 -2 -2 ------- Run | Yrd Mat Min Mat Min Mat Sto Rec Scr Fac Was Fac Low Low Dat Pro Fac Upp Upp Zhi Pro Fac Upp Upp War Pro Res Tes Res Qua Frg Traps Triggered 23 | . 2 . . . 3 3 . . 2 . 5 . . . . . . . . . 2 . . . . . 3 . 1 2 Indirectly . | . . . . . . . . . . . . . . . . . . . . . . . . . . . . . . . Trap Hack Attempts . | . . . . . . . . . . . . . . . . . . . . . . . . . . . . . . . Triggered . | . . . . . . . . . . . . . . . . . . . . . . . . . . . . . . . Disarmed 8 | . . . 4 . 4 . . . . . . . . . . . . . . . . . . . . . . . . . Reprogrammed . | . . . . . . . . . . . . . . . . . . . . . . . . . . . . . . . Reused . | . . . . . . . . . . . . . . . . . . . . . . . . . . . . . . . Traps Extracted . | . . . . . . . . . . . . . . . . . . . . . . . . . . . . . . . Installed . | . . . . . . . . . . . . . . . . . . . . . . . . . . . . . . . Triggered . | . . . . . . . . . . . . . . . . . . . . . . . . . . . . . . . Most Traps Carried 2 | . . . . . . . . 2 2 . . . . . . . . . . . . . . . . . . . . . Machines | -11 -10 -10 -9 -9 -8 -8 -8 -8 -6 -6 -6 -6 -6 -6 -5 -5 -5 -5 -5 -4 -4 -4 -4 -4 -3 -3 -3 -2 -2 -2 ---------- Run | Yrd Mat Min Mat Min Mat Sto Rec Scr Fac Was Fac Low Low Dat Pro Fac Upp Upp Zhi Pro Fac Upp Upp War Pro Res Tes Res Qua Frg Machines Disabled 41 | . . . 2 . 3 4 . . 4 . 11 . . . . 1 1 . . . 1 . . 3 . . . 1 7 3 Max in Single Turn 5 | . . . 1 . 1 1 . . 3 . 5 . . . . 1 1 . . . 1 . . 1 . . . 1 1 1 Garrison Access 3 | . . . . . . . . . 1 . 1 . . . . 1 . . . . . . . . . . . . . . Machines Repaired . | . . . . . . . . . . . . . . . . . . . . . . . . . . . . . . . Machines Dismantled . | . . . . . . . . . . . . . . . . . . . . . . . . . . . . . . . Machines Sabotaged . | . . . . . . . . . . . . . . . . . . . . . . . . . . . . . . . Overloaded Fab Kills . | . . . . . . . . . . . . . . . . . . . . . . . . . . . . . . . Hacking | -11 -10 -10 -9 -9 -8 -8 -8 -8 -6 -6 -6 -6 -6 -6 -5 -5 -5 -5 -5 -4 -4 -4 -4 -4 -3 -3 -3 -2 -2 -2 --------- Run | Yrd Mat Min Mat Min Mat Sto Rec Scr Fac Was Fac Low Low Dat Pro Fac Upp Upp Zhi Pro Fac Upp Upp War Pro Res Tes Res Qua Frg Machines Accessed 142 | . 4 . 8 1 10 8 11 2 17 . 19 . . 4 . 14 . . 4 . 13 . 1 1 . 5 4 4 7 5 Terminals 71 | . 3 . 6 . 7 7 6 . 6 . 9 . . . . 6 . . . . 7 . . . . 2 2 4 5 1 Fabricators 4 | . . . . . . . . . 2 . 1 . . . . . . . . . . . . . . . 1 . . . Repair Stations 3 | . . . . . 1 . . . 1 . . . . . . . . . . . . . . . . . . . 1 . Recycling Units 36 | . 1 . 1 . 1 . 5 . 6 . 6 . . . . 6 . . . . 5 . . . . 2 . . . 3 Scanalyzers 8 | . . . 1 . 1 . . . 1 . 1 . . . . 1 . . . . . . . . . 1 1 . . 1 Garrison Access 7 | . . . . . . 1 . . 1 . 2 . . . . 1 . . . . 1 . . . . . . . 1 . Total Hacks 375 | . 13 . 25 1 28 15 33 24 32 . 40 . . 30 . 29 . . 17 . 30 . 1 1 . 13 7 10 18 8 Successful 244 | . 4 . 14 1 17 8 20 24 26 . 19 . . 30 . 16 . . 17 . 17 . 1 1 . 10 3 6 6 4 Failed 130 | . 9 . 11 . 10 7 13 . 6 . 21 . . . . 13 . . . . 13 . . . . 3 4 4 12 4 Catastrophic 20 | . . . 2 . 3 1 2 . 1 . 4 . . . . 1 . . . . 1 . . . . 1 . . 3 1 Database Lockouts 1 | . . . . . 1 . . . . . . . . . . . . . . . . . . . . . . . . . Manual 158 | . 8 . 13 . 7 7 24 . 17 . 24 . . . . 21 . . . . 14 . . 1 . 5 3 2 6 6 Terminals 195 | . 12 . 21 . 18 13 23 . 15 . 22 . . . . 18 . . . . 20 . . . . 8 3 10 11 1 Fabricators 11 | . . . . . . . . . 5 . 4 . . . . . . . . . . . . . . . 2 . . . Repair Stations 6 | . . . . . 2 . . . 2 . . . . . . . . . . . . . . . . . . . 2 . Recycling Units 48 | . 1 . 1 . 1 . 10 . 6 . 8 . . . . 8 . . . . 6 . . . . 2 . . . 5 Scanalyzers 24 | . . . 3 . 7 . . . 3 . 2 . . . . 2 . . . . . . . . . 3 2 . . 2 Garrison Access 17 | . . . . . . 2 . . 1 . 4 . . . . 1 . . . . 4 . . . . . . . 5 . Terminal Hacks 145 | . 3 . 8 1 6 7 6 24 6 . 7 . . 30 . 5 . . 17 . 10 . 1 1 . 4 1 4 4 . Record 42 | . . . . . 1 . . 24 . . . . . 11 . . . . 5 . . . . . . . . . 1 . Part Schematic 24 | . 1 . 2 . . . 4 . 1 . . . . 12 . . . . 4 . . . . . . . . . . . Robot Schematic 4 | . . . . . . . . . . . . . . 4 . . . . . . . . . . . . . . . . Robot Analysis 5 | . 1 . . . . . . . . . . . . . . . . . 4 . . . . . . . . . . . Prototype ID Bank 8 | . . . . . . . . . . . . . . 3 . . . . 4 . 1 . . . . . . . . . Open Door 6 | . . . . 1 . 2 . . . . . . . . . . . . . . . . 1 1 . . . 1 . . Level Access Points 1 | . . . . . . . . . . . . . . . . . . . . . . . . . . 1 . . . . Branch Access Points 5 | . . . 1 . 1 . . . . . 1 . . . . . . . . . 1 . . . . . . 1 . . Emergency Access Points 1 | . . . . . . . . . . . . . . . . . . . . . 1 . . . . . . . . . Terminal Index 1 | . . . . . . . . . . . 1 . . . . . . . . . . . . . . . . . . . Unreport Threat 8 | . . . 1 . 1 1 1 . . . 1 . . . . 1 . . . . 1 . . . . . . . 1 . Locate Traps 8 | . . . 1 . . 1 . . 1 . . . . . . 1 . . . . 2 . . . . 1 . 1 . . Disarm Traps 2 | . . . 1 . 1 . . . . . . . . . . . . . . . . . . . . . . . . . Maintenance Status 1 | . . . . . . . . . . . . . . . . 1 . . . . . . . . . . . . . . Security Status 2 | . . . . . . . . . 1 . . . . . . . . . . . . . . . . 1 . . . . Surveillance Status 2 | . . . . . . . . . . . . . . . . . . . . . . . . . . 1 1 . . . Recall Investigation 5 | . . . . . 2 . . . 2 . . . . . . 1 . . . . . . . . . . . . . . Recall Extermination 3 | . . . . . . . . . 1 . 1 . . . . . . . . . 1 . . . . . . . . . Recall Reinforcements 1 | . . . . . . . . . . . . . . . . . . . . . 1 . . . . . . . . . Hauler Manifests 4 | . 1 . 1 . . . . . . . . . . . . 1 . . . . 1 . . . . . . . . . Zone Layout 12 | . . . 1 . . 3 1 . . . 3 . . . . . . . . . 1 . . . . . . 1 2 . Fabricator Hacks 6 | . . . . . . . . . 3 . 3 . . . . . . . . . . . . . . . . . . . Network Status 1 | . . . . . . . . . . . 1 . . . . . . . . . . . . . . . . . . . Load Schematic 3 | . . . . . . . . . 2 . 1 . . . . . . . . . . . . . . . . . . . Build 2 | . . . . . . . . . 1 . 1 . . . . . . . . . . . . . . . . . . . Repair Station Hacks 5 | . . . . . 2 . . . 2 . . . . . . . . . . . . . . . . . . . 1 . Scan Component 3 | . . . . . 1 . . . 1 . . . . . . . . . . . . . . . . . . . 1 . Repair 2 | . . . . . 1 . . . 1 . . . . . . . . . . . . . . . . . . . . . Recycling Unit Hacks 4 | . . . 1 . 1 . 2 . . . . . . . . . . . . . . . . . . . . . . . Retrieve Components 4 | . . . 1 . 1 . 2 . . . . . . . . . . . . . . . . . . . . . . . Scanalyzer 19 | . . . 3 . 6 . . . 3 . 1 . . . . 2 . . . . . . . . . 2 1 . . 1 Insert Component 6 | . . . 1 . 3 . . . 1 . . . . . . 1 . . . . . . . . . . . . . . Analyze 4 | . . . . . 2 . . . 1 . . . . . . 1 . . . . . . . . . . . . . . Retrieve Study 9 | . . . 2 . 1 . . . 1 . 1 . . . . . . . . . . . . . . 2 1 . . 1 Garrison Access Hacks 3 | . . . . . . . . . 1 . 1 . . . . 1 . . . . . . . . . . . . . . Seal Access 3 | . . . . . . . . . 1 . 1 . . . . 1 . . . . . . . . . . . . . . Unauthorized Hacks 61 | . 1 . 2 . 2 1 11 . 11 . 7 . . . . 8 . . . . 7 . . . . 4 1 2 1 3 Terminals 25 | . 1 . 2 . 2 1 7 . 3 . . . . . . 2 . . . . 2 . . . . 2 . 2 1 . Track 1 | . . . . . . . . . . . . . . . . . . . . . . . . . . . . 1 . . Assimilate 3 | . . . . . . . . . . . . . . . . 1 . . . . 1 . . . . . . . 1 . Botnet 9 | . . . 1 . 1 1 2 . 2 . . . . . . . . . . . 1 . . . . 1 . . . . Disrupt 1 | . . . . . . . . . . . . . . . . . . . . . . . . . . . . 1 . . Operators 4 | . . . 1 . 1 . . . . . . . . . . 1 . . . . . . . . . 1 . . . . Skim 7 | . 1 . . . . . 5 . 1 . . . . . . . . . . . . . . . . . . . . . Fabricators 4 | . . . . . . . . . 2 . 1 . . . . . . . . . . . . . . . 1 . . . Prioritize 2 | . . . . . . . . . 1 . 1 . . . . . . . . . . . . . . . . . . . Liberate 1 | . . . . . . . . . . . . . . . . . . . . . . . . . . . 1 . . . Recompile 1 | . . . . . . . . . 1 . . . . . . . . . . . . . . . . . . . . . Repair Stations . | . . . . . . . . . . . . . . . . . . . . . . . . . . . . . . . Recycling Units 32 | . . . . . . . 4 . 6 . 6 . . . . 6 . . . . 5 . . . . 2 . . . 3 Tunnel 6 | . . . . . . . 4 . 1 . . . . . . . . . . . . . . . . 1 . . . . Fedlink 24 | . . . . . . . . . 5 . 6 . . . . 6 . . . . 5 . . . . 1 . . . 1 Scraphulk 2 | . . . . . . . . . . . . . . . . . . . . . . . . . . . . . . 2 Scanalyzers . | . . . . . . . . . . . . . . . . . . . . . . . . . . . . . . . Garrison Access . | . . . . . . . . . . . . . . . . . . . . . . . . . . . . . . . Data Cores Recovered 2 | . . . . . . 1 . . . . . . . . . . . . . . 1 . . . . . . . . . Used . | . . . . . . . . . . . . . . . . . . . . . . . . . . . . . . . Hacking Detections 73 | . 4 . 6 . 8 5 6 . 7 . 12 . . . . 8 . . . . 6 . . . . 1 1 2 5 2 Full Trace Events 8 | . 1 . . . 2 . 2 . 1 . 1 . . . . 1 . . . . . . . . . . . . . . Feedback Events . | . . . . . . . . . . . . . . . . . . . . . . . . . . . . . . . Feedback Blocked . | . . . . . . . . . . . . . . . . . . . . . . . . . . . . . . . Robot Schematics Acquired 4 | . . . . . . . . . . . . . . 4 . . . . . . . . . . . . . . . . Robots Built . | . . . . . . . . . . . . . . . . . . . . . . . . . . . . . . . Authchips . | . . . . . . . . . . . . . . . . . . . . . . . . . . . . . . . Time . | . . . . . . . . . . . . . . . . . . . . . . . . . . . . . . . Total Robot Build Rating . | . . . . . . . . . . . . . . . . . . . . . . . . . . . . . . . Part Schematics Acquired 28 | . 1 . 2 . 2 . 4 . 2 . . . . 12 . 1 . . 4 . . . . . . . . . . . Parts Built 2 | . . . . . . . . . 1 . 1 . . . . . . . . . . . . . . . . . . . Authchips . | . . . . . . . . . . . . . . . . . . . . . . . . . . . . . . . Time 71 | . . . . . . . . . 33 . 38 . . . . . . . . . . . . . . . . . . . Total Part Build Rating 9 | . . . . . . . . . 4 . 5 . . . . . . . . . . . . . . . . . . . Part Studies Acquired 9 | . . . 2 . 1 . . . 1 . 1 . . . . . . . . . . . . . . 2 1 . . 1 Parts Repaired 2 | . . . . . 1 . . . 1 . . . . . . . . . . . . . . . . . . . . . Time 132 | . . . . . 32 . . . 100 . . . . . . . . . . . . . . . . . . . . . Parts Recycled . | . . . . . . . . . . . . . . . . . . . . . . . . . . . . . . . Recycled Matter . | . . . . . . . . . . . . . . . . . . . . . . . . . . . . . . . Retrieved Matter . | . . . . . . . . . . . . . . . . . . . . . . . . . . . . . . . Retrieved Components 9 | . . . 7 . 1 . 1 . . . . . . . . . . . . . . . . . . . . . . . Parts Scanalyzed 4 | . . . . . 2 . . . 1 . . . . . . 1 . . . . . . . . . . . . . . Part Schematics Acquired 4 | . . . . . 2 . . . 1 . . . . . . 1 . . . . . . . . . . . . . . Parts Damaged 1 | . . . . . . . . . 1 . . . . . . . . . . . . . . . . . . . . . Bothacking | -11 -10 -10 -9 -9 -8 -8 -8 -8 -6 -6 -6 -6 -6 -6 -5 -5 -5 -5 -5 -4 -4 -4 -4 -4 -3 -3 -3 -2 -2 -2 ------------ Run | Yrd Mat Min Mat Min Mat Sto Rec Scr Fac Was Fac Low Low Dat Pro Fac Upp Upp Zhi Pro Fac Upp Upp War Pro Res Tes Res Qua Frg Used RIF Installer . | . . . . . . . . . . . . . . . . . . . . . . . . . . . . . . . Robots Hacked . | . . . . . . . . . . . . . . . . . . . . . . . . . . . . . . . Non-combat . | . . . . . . . . . . . . . . . . . . . . . . . . . . . . . . . Combat . | . . . . . . . . . . . . . . . . . . . . . . . . . . . . . . . Robot Hacks Applied . | . . . . . . . . . . . . . . . . . . . . . . . . . . . . . . . Relay Couplers Released . | . . . . . . . . . . . . . . . . . . . . . . . . . . . . . . . Fabnet Peak Effective % . | . . . . . . . . . . . . . . . . . . . . . . . . . . . . . . . Robots Rewired 5 | . . . . . . . . . . . . . . . . . . . . . . . . 5 . . . . . . Allies Hacked . | . . . . . . . . . . . . . . . . . . . . . . . . . . . . . . . Hacks Repelled . | . . . . . . . . . . . . . . . . . . . . . . . . . . . . . . . Allies | -11 -10 -10 -9 -9 -8 -8 -8 -8 -6 -6 -6 -6 -6 -6 -5 -5 -5 -5 -5 -4 -4 -4 -4 -4 -3 -3 -3 -2 -2 -2 -------- Run | Yrd Mat Min Mat Min Mat Sto Rec Scr Fac Was Fac Low Low Dat Pro Fac Upp Upp Zhi Pro Fac Upp Upp War Pro Res Tes Res Qua Frg Total Allies 16 | . . . . 4 . . . . . . . . . . . 1 . . . . . . . 5 . . 3 . 1 2 Largest Group 5 | . . . . 4 4 . . . . . . . . . . 1 . . . . . . . 5 . . 3 . 1 2 Highest-Rated Group 309 | . . . . 71 71 . . . . . . . . . . 26 . . . . . . . 309 . . 126 . 26 278 Highest-Rated Ally 139 | . . . . 31 31 . . . . . . . . . . 26 . . . . . . . 68 . . 42 . 26 139 Initial UFD Resources 122 | . . . . . . . . . 24 44 44 56 56 56 60 60 82 82 82 85 85 105 105 105 109 109 119 122 122 122 Total Orders 4 | . . . . . . . . . . . . . . . . . . . . . . . . 2 . . . . . 2 STAY 2 | . . . . . . . . . . . . . . . . . . . . . . . . 1 . . . . . 1 FOLLOW 2 | . . . . . . . . . . . . . . . . . . . . . . . . 1 . . . . . 1 Ally Attacks 102 | . . . . 2 42 . . . . . . . . . . . . . . . . . . 23 . . . . . 35 Total Damage 3648 | . . . . . 425 . . . . . . . . . . . . . . . . . . 752 . . . . . 2471 Kills 21 | . . . . . 7 . . . . . . . . . . . . . . . . . . 7 . . . . . 7 Allies Corrupted . | . . . . . . . . . . . . . . . . . . . . . . . . . . . . . . . Allies Melted 2 | . . . . . . . . . . . . . . . . . . . . . . . . . . . . . . 2 Intel | -11 -10 -10 -9 -9 -8 -8 -8 -8 -6 -6 -6 -6 -6 -6 -5 -5 -5 -5 -5 -4 -4 -4 -4 -4 -3 -3 -3 -2 -2 -2 ------- Run | Yrd Mat Min Mat Min Mat Sto Rec Scr Fac Was Fac Low Low Dat Pro Fac Upp Upp Zhi Pro Fac Upp Upp War Pro Res Tes Res Qua Frg Active Infowar (turns) 16578 | 18 913 412 100 1430 1594 688 1023 1807 661 25 700 121 247 23 216 517 270 479 69 198 433 244 230 626 219 176 178 243 401 2317 Optics 11945 | . . . . . . 522 1023 1807 661 25 700 121 247 23 216 517 270 479 69 198 433 244 230 626 219 176 178 243 401 2317 Sensors 4351 | . . . . . . . . . 421 8 651 121 244 23 216 467 13 . 28 198 405 244 185 420 . 17 178 243 269 . IFF 886 | . . . . . . . . . . . . . . . . . 255 479 38 . . . . . . 114 . . . . Terrain 2859 | . . . . . . . . . . . . . . . . 413 270 233 28 198 433 244 191 375 219 176 79 . . . Structural 1073 | . . . . . . . . . 648 25 209 . . . . . . . . . . . . . . . . . 191 . Seismic 4701 | 18 913 412 100 1430 1592 . . . 236 . . . . . . . . . . . . . . . . . . . . . Cloaking 1087 | . . . . . . . . . . . . . . . . 42 1 . . . 433 133 230 71 177 . . . . . Jamming 956 | . . . . . 2 166 . . . . . . . . . . . . . . 432 80 1 . . 109 85 81 . . Robot Analysis Total 5 | . 1 . . . . . . . . . . . . . . . . . 4 . . . . . . . . . . . Derelict Logs Recovered 13 | . . 1 . 1 . . . . . . . 1 1 . 1 . 2 1 . 1 . 2 2 . . . . . . . Drone Launches . | . . . . . . . . . . . . . . . . . . . . . . . . . . . . . . . Drone Recoveries . | . . . . . . . . . . . . . . . . . . . . . . . . . . . . . . . Exploration | -11 -10 -10 -9 -9 -8 -8 -8 -8 -6 -6 -6 -6 -6 -6 -5 -5 -5 -5 -5 -4 -4 -4 -4 -4 -3 -3 -3 -2 -2 -2 ------------- Run | Yrd Mat Min Mat Min Mat Sto Rec Scr Fac Was Fac Low Low Dat Pro Fac Upp Upp Zhi Pro Fac Upp Upp War Pro Res Tes Res Qua Frg Turns Passed 20934 | 121 1209 686 1936 1430 2520 1609 1023 1807 661 25 700 121 247 23 216 517 270 479 69 198 433 244 230 626 219 176 178 243 401 2317 Spaces Moved 23265 | 56 539 360 897 611 964 665 781 1656 1514 81 1828 376 812 85 437 1122 699 1040 136 595 963 641 573 1053 603 446 351 670 1074 1637 Core 7 | 7 . . . . . . . . . . . . . . . . . . . . . . . . . . . . . . Treads 4159 | 49 539 359 897 611 964 665 75 . . . . . . . . . . . . . . . . . . . . . . . Legs 1252 | . . . . . . . . . . . . . . . . . . . . . . . . . . . . . . 1252 Wheels 2363 | . . 1 . . . . 706 1656 . . . . . . . . . . . . . . . . . . . . . . Hover . | . . . . . . . . . . . . . . . . . . . . . . . . . . . . . . . Flight 15484 | . . . . . . . . . 1514 81 1828 376 812 85 437 1122 699 1040 136 595 963 641 573 1053 603 446 351 670 1074 385 Fastest Speed 6 | 50 160 95 160 220 153 150 108 108 26 27 27 27 20 27 27 20 23 31 31 19 17 23 29 26 21 26 17 6 6 16 Average Speed 68 | 149 160 159 169 220 205 178 118 108 26 27 27 27 26 27 27 26 28 35 37 30 27 29 29 27 27 26 28 23 22 90 Slowest Speed 243 | 160 160 160 220 220 243 219 206 108 29 30 27 27 27 27 27 29 31 42 42 31 31 34 29 103 28 26 99 27 91 186 Overloaded Moves 383 | . . . . . . . . . . . . . 17 . . 15 9 . . 21 6 2 . . 21 . 19 119 50 104 Propulsion Burnouts . | . . . . . . . . . . . . . . . . . . . . . . . . . . . . . . . Robots Hopped 55 | . . . . . . . . . 2 . 3 . 2 . . 5 . . . 3 2 . . 7 1 . 3 26 1 . Potential Cave-ins 25 | . . . . . . . . . 2 . . . . . 5 4 . . . . . . . . . . . 9 . 5 Cave-ins Triggered 2 | . . . 1 . . . . . . . . . . . . 1 . . . . . . . . . . . . . . Exploration Rate (%) 67 | 5 80 83 59 98 82 90 99 89 44 89 58 70 86 76 61 43 70 95 61 76 37 80 78 92 76 14 49 30 84 46 Regions Visited 30 Branch Regions 20 Pre-discovered Areas 18 | . . . . 1 . . 4 3 2 . . . . 1 . . 2 . 3 . . . 1 . . 1 . . . . Known Exits Taken 21 | . . . 1 . 1 . . . . . 1 1 1 1 1 1 1 1 1 1 1 1 1 1 1 1 1 1 1 . Unknown Exits Taken 7 | 1 1 1 . 1 . 1 1 1 . . . . . . . . . . . . . . . . . . . . . . Scrap Searched 32 | . . 2 . 2 . . . 6 . . . 2 3 . 2 . 2 5 . . . 4 2 . 2 . . . . . Spaces Dug 415 | . . . 17 5 3 18 . . 34 . 24 1 20 . 16 51 10 27 . 1 29 59 . . 28 9 5 39 5 14 Terrain Destroyed 1073 | . 34 29 20 5 53 33 . . 56 . 135 1 57 . 16 57 10 82 . 51 29 81 . 74 41 9 5 73 19 103 Melee 244 | . . . 7 . 3 8 . . 34 . 24 1 6 . 16 46 10 4 . 1 29 . . . 7 9 5 24 5 5 Projectile 85 | . . . . . 13 6 . . . . . . . . . 11 . . . . . . . 5 . . . . . 50 AOE 744 | . 34 29 13 5 37 19 . . 22 . 111 . 51 . . . . 78 . 50 . 81 . 69 34 . . 49 14 48 Terrain Rammed . | . . . . . . . . . . . . . . . . . . . . . . . . . . . . . . . Walls Destroyed . | . . . . . . . . . . . . . . . . . . . . . . . . . . . . . . . Machines Disabled . | . . . . . . . . . . . . . . . . . . . . . . . . . . . . . . . Actions | -11 -10 -10 -9 -9 -8 -8 -8 -8 -6 -6 -6 -6 -6 -6 -5 -5 -5 -5 -5 -4 -4 -4 -4 -4 -3 -3 -3 -2 -2 -2 --------- Run | Yrd Mat Min Mat Min Mat Sto Rec Scr Fac Was Fac Low Low Dat Pro Fac Upp Upp Zhi Pro Fac Upp Upp War Pro Res Tes Res Qua Frg Total 26417 | 75 763 430 1146 667 1273 903 839 1681 1681 82 1951 393 824 84 506 1246 742 1131 152 601 1066 691 638 1343 641 479 421 689 1202 2077 Wait 1123 | . 122 26 74 13 95 44 10 1 57 . 13 17 1 . 49 40 15 72 1 1 30 38 60 201 24 1 17 3 51 47 Move 23131 | 55 538 359 896 610 963 664 780 1655 1510 80 1821 375 807 84 436 1111 698 1039 135 589 958 640 572 1038 600 445 344 621 1071 1637 Hop 50 | . . . . . . . . . 2 . 3 . 2 . . 5 . . . 2 2 . . 7 1 . 3 22 1 . Pick Up 164 | 4 6 4 20 8 22 11 3 10 7 . 4 . . . . 8 2 1 1 . 8 . . 4 . 1 2 2 12 24 Fast Attach 175 | 7 2 3 5 2 8 17 4 2 7 1 3 . 3 . 1 4 4 . 6 . 7 2 . 5 1 7 7 4 13 50 Attach 91 | . . 3 4 1 5 2 2 . 10 1 2 . . . . 6 2 1 1 3 6 2 . 6 2 2 4 5 9 12 Detach 47 | . . . . . 1 2 1 . 3 . . . . . . 2 1 1 1 1 1 2 1 4 2 2 4 3 5 10 Swap 170 | . 11 5 29 4 17 25 5 1 7 . 2 . . . 1 5 3 . 1 . 3 . 2 10 1 . 3 1 3 31 Drop 242 | . 6 3 19 8 30 29 7 12 16 . 4 . 1 . 1 6 3 2 6 . 9 1 3 6 . 4 10 1 13 42 Fire 712 | 9 74 20 74 19 117 91 27 . 5 . 3 . 4 . 2 9 . 6 . 4 . 4 . 36 3 . . 2 3 200 Melee 360 | . . . 15 . 4 11 . . 57 . 51 1 6 . 16 50 14 9 . 1 42 2 . . 7 17 6 25 21 5 Ram . | . . . . . . . . . . . . . . . . . . . . . . . . . . . . . . . Kick 3 | . . . . . . . . . . . . . . . . . . . . . . . . . . . . . . 3 Crush 37 | . 4 7 10 2 11 3 . . . . . . . . . . . . . . . . . . . . . . . . Escape Stasis 86 | . . . . . . 4 . . . . 45 . . . . . . . . . . . . . . . 21 . . 16 Rewire 26 | . . . . . . . . . . . . . . . . . . . . . . . . 26 . . . . . . Trap . | . . . . . . . . . . . . . . . . . . . . . . . . . . . . . . . Miscellaneous . | . . . . . . . . . . . . . . . . . . . . . . . . . . . . . . . Route ------- -11/Scrapyard -10/Materials (discovered 4 exits: *Mat x3 / [*Min]) -10/Mines (discovered 2 exits: *Mat x2) -9/Materials (discovered 3 exits: *Mat x2 / *Min) -9/Mines (discovered 2 exits: *Mat x2) -8/Materials (discovered 4 exits: *Fac x3 / *Sto) -8/Storage (discovered 2 exits: *Fac / *Rec) -8/Recycling (discovered 2 exits: *Fac / *Scr) -8/Scraptown (discovered 2 exits: *Fac x2) -6/Factory (discovered 5 exits: *Fac x2 / *Low x2 / *Ext) -6/Waste -6/Factory (discovered 4 exits: *Low x2 / *Ext x2) -6/Lower Caves -6/Lower Caves (discovered 2 exits: *Fac / *Dat) -6/Data Miner -5/Proximity Caves -5/Factory (discovered 5 exits: *Fac x3 / *Upp x2) -5/Upper Caves -5/Upper Caves (discovered 2 exits: *Fac / *Zhi) -5/Zhirov -4/Proximity Caves -4/Factory (discovered 4 exits: Res / *Upp x2 / Arm) -4/Upper Caves -4/Upper Caves (discovered 2 exits: *Res / *War) -4/Warlord -3/Proximity Caves -3/Research (discovered 4 exits: Res x3 / *Tes) -3/Testing -2/Research (discovered 5 exits: *Acc x3 / *Qua x2) -2/Quarantine (discovered 2 exits: *Sec / *Frg) -2/Protoforge History --------- Turn | Location | Event 9 | -11/Scrapyard | Discovered new exit (range 16) 122 | -11/Scrapyard | Entered Materials 315 | -10/Materials | Build established: Mutant 757 | -10/Materials | Discovered new exit (range 3) 1060 | -10/Materials | Discovered new exit (range 15) 1115 | -10/Materials | Build established: Scavenger-Mutant 1217 | -10/Materials | Discovered new exit (range 16) 1306 | -10/Materials | Discovered new exit (range 15) 1331 | -10/Materials | Entered Mines 1413 | -10/Mines | Found a hidden stash of uninstalled traps 1612 | -10/Mines | Build established: Mutant 1639 | -10/Mines | Discovered new exit (range 10) 1791 | -10/Mines | Core integrity fell below 50% 1846 | -10/Mines | Joined a pair of Derelicts in attacking an 0b10 outpost 1848 | -10/Mines | Lost 5 parts (3n1u1w) 1934 | -10/Mines | Discovered new exit (range 16) 2017 | -10/Mines | Entered Materials 2017 | -9/Materials | Evolved 2 slots: Utility x2 2018 | -9/Materials | Identified exit to Mines 2494 | -9/Materials | Build established: Scavenger-Mutant 2718 | -9/Materials | Discovered new exit (range 8) 3313 | -9/Materials | Discovered new exit (range 13) 3332 | -9/Materials | Build established: Mutant 3894 | -9/Materials | Crushed by falling debris 3894 | -9/Materials | Core integrity fell below 50% 3953 | -9/Materials | Entered Mines 4134 | -9/Mines | Assembled infested the area 4138 | -9/Mines | Received a Rocket Launcher from a helpful Derelict 4425 | -9/Mines | Discovered new exit (range 5) 4459 | -9/Mines | Met a Derelict who couldn't figure out how to use a Trap Extractor 4715 | -9/Mines | Assisted by bots powering up and referring to "LRC-V3" 4771 | -9/Mines | A Derelict revealed a hidden shortcut to a safe place 4823 | -9/Mines | Learned location of Zion (-7) 5052 | -9/Mines | Deemed a non-threat by the Exiles lab entrance 5167 | -9/Mines | Received a Mining Laser from a helpful Derelict 5171 | -9/Mines | Discovered new exit (range 9) 5383 | -9/Mines | Entered Materials 5383 | -8/Materials | Accompanied by 4 allies 5383 | -8/Materials | Evolved 2 slots: Propulsion x1, Utility x1 5449 | -8/Materials | Garrison activated, responded to threat 5692 | -8/Materials | Repaired Imp. Treads 5964 | -8/Materials | Discovered new exit (range 11) 6219 | -8/Materials | Central database locked down 6904 | -8/Materials | Discovered new exit (range 16) 6976 | -8/Materials | Identified exit to Factory 7241 | -8/Materials | Identified exit to Storage 7437 | -8/Materials | Discovered exit to Factory (range 4) 7903 | -8/Materials | Entered Storage 8239 | -8/Storage | Destroyed 7 combat bots 8945 | -8/Storage | Discovered exit to Factory (range 15) 9177 | -8/Storage | Garrison activated, responded to threat 9369 | -8/Storage | Discovered new exit (range 17) 9505 | -8/Storage | Used back door to open Recycling access 9512 | -8/Storage | Entered Recycling 9936 | -8/Recycling | Discovered new exit (range 7) 10185 | -8/Recycling | Scanned before Scraplab entrance 10233 | -8/Recycling | Build established: Hacker-Mutant 10524 | -8/Recycling | Entered Scraplab 10533 | -8/Recycling | Discovered new exit (range 3) 10535 | -8/Recycling | Entered Scraptown 10535 | -8/Scraptown | System corruption cleaned by C-Scrubber 10596 | -8/Scraptown | Heard Great Nut preacher, LISTEN AND RECITE! 10649 | -8/Scraptown | Visited UFD Registry 10649 | -8/Scraptown | Registered with UFD as "Hellplate" 10702 | -8/Scraptown | Visited Scrapoid Research Area 10733 | -8/Scraptown | Visited Cartography Club 10742 | -8/Scraptown | Visited Scrapoid Pod Storage 10757 | -8/Scraptown | Visited Supply Room 10773 | -8/Scraptown | Visited Curators Association 10817 | -8/Scraptown | Visited Abandonware Association 10833 | -8/Scraptown | Visited Science Guys 10848 | -8/Scraptown | Visited A0-MCA Data Center 10949 | -8/Scraptown | Visited Junk Repository 11012 | -8/Scraptown | Visited Cyclists 11023 | -8/Scraptown | Entered Cyclist Reading Room 11068 | -8/Scraptown | Visited The Evicted 11095 | -8/Scraptown | Visited Red Mages 11137 | -8/Scraptown | Visited CPS Storage 11188 | -8/Scraptown | Discovered new exit (range 11) 11737 | -8/Scraptown | Found Surveybot 17 Chip 11839 | -8/Scraptown | Learned location of Upper Caves (-4) 11839 | -8/Scraptown | Learned location of Warlord (-4) 11839 | -8/Scraptown | Learned 16 Materials zone layouts 11839 | -8/Scraptown | Learned 20 Factory zone layouts 11839 | -8/Scraptown | Learned 12 Research zone layouts 11839 | -8/Scraptown | Learned 4 Mines zone layouts 11839 | -8/Scraptown | Learned 4 Recycling zone layouts 11839 | -8/Scraptown | Learned 12 Lower Caves zone layouts 11839 | -8/Scraptown | Learned 8 Upper Caves zone layouts 11839 | -8/Scraptown | Learned 12 Proximity Caves zone layouts 11839 | -8/Scraptown | Learned Storage emergency access door positions 11839 | -8/Scraptown | Learned location of 1 exit from Proximity Caves 11839 | -8/Scraptown | Learned location of 2 exits from Proximity Caves 11999 | -8/Scraptown | Found Deep Structural Scanner 12045 | -8/Scraptown | Visited DA-N13 Charitable Foundation 12060 | -8/Scraptown | Found DCF Scrap (28 items) 12285 | -8/Scraptown | Met Optimus 12285 | -8/Scraptown | Accepted into 0bPrime 12338 | -8/Scraptown | Discovered new exit (range 5) 12342 | -8/Scraptown | Entered Factory 12342 | -6/Factory | Evolved 4 slots: Propulsion x1, Utility x3 12343 | -6/Factory | Identified exit to Lower Caves 12344 | -6/Factory | Identified exit to Factory 12569 | -6/Factory | Loaded intel: 8 recycling unit locations 12619 | -6/Factory | Learned location of Protoforge (-2) 12619 | -6/Factory | Discovered new exit (range 21) 12688 | -6/Factory | Discovered exit to Factory (range 23) 12794 | -6/Factory | Repaired Broken Cld. Cesium-ion Thruster? 12853 | -6/Factory | Build established: Hacker-Scout 12960 | -6/Factory | Watched by a mysterious "MATRIX" hacker. 12993 | -6/Factory | Fabricated Cld. VTOL Module (x1) 13003 | -6/Factory | Sucked down chute 13003 | -6/Factory | Entered Waste 13008 | -6/Waste | Spotted C-40 Crusher 13008 | -6/Waste | Spotted C-40 Crusher 13010 | -6/Waste | Spotted C-40 Crusher 13010 | -6/Waste | Spotted C-40 Crusher 13011 | -6/Waste | Spotted C-40 Crusher 13011 | -6/Waste | Crushed by Compactor (1 part destroyed, 1 dropped) 13018 | -6/Waste | EMP discharged 13018 | -6/Waste | Spotted C-40 Crusher 13022 | -6/Waste | Discovered new exit (range 21) 13028 | -6/Waste | Identified exit to Factory 13028 | -6/Waste | Entered Factory 13093 | -6/Factory | Spotted B-75 Beast 13149 | -6/Factory | Garrison activated, responded to threat 13156 | -6/Factory | Discovered new exit (range 15) 13161 | -6/Factory | Loaded intel: 8 recycling unit locations 13212 | -6/Factory | Fabricated Cld. Cesium-ion Thruster (x1) 13674 | -6/Factory | Identified exit to Extension 13728 | -6/Factory | Entered Lower Caves 13729 | -6/Lower Caves | Identified exit to Lower Caves 13730 | -6/Lower Caves | Encountered a Warlord checkpoint 13787 | -6/Lower Caves | Spotted B-75 Beast 13791 | -6/Lower Caves | Learned location of 2 exits from Factory 13799 | -6/Lower Caves | Attracted the attention of an 0b10 checkpoint 13849 | -6/Lower Caves | Entered another Lower Caves area 13858 | -6/Lower Caves | Found Alien Artifact 13858 | -6/Lower Caves | Identified Core Expander 13858 | -6/Lower Caves | Installed Core Expander, added new Weapon slot 13865 | -6/Lower Caves | Discovered exit to Factory (range 7) 13867 | -6/Lower Caves | Encountered a Warlord checkpoint 13923 | -6/Lower Caves | Spotted B-75 Beast 14087 | -6/Lower Caves | Discovered new exit (range 7) 14088 | -6/Lower Caves | Identified exit to Data Miner 14096 | -6/Lower Caves | Entered Data Miner 14096 | -6/Data Miner | Discovered new exit (range 6) 14100 | -6/Data Miner | Met Data Miner 14108 | -6/Data Miner | Learned location of Section 7 (-2) 14108 | -6/Data Miner | Acquired the access code to Warlord's prototype stash 14112 | -6/Data Miner | Received God Mode back door access code from Data Miner 14119 | -6/Data Miner | Identified exit to Proximity Caves 14119 | -6/Data Miner | Entered Proximity Caves 14121 | -5/Proximity Caves | Learned 8 Factory zone layouts 14335 | -5/Proximity Caves | Entered Factory 14335 | -5/Factory | Evolved 2 slots: Utility x2 14336 | -5/Factory | Identified exit to Upper Caves 14337 | -5/Factory | Identified exit to Factory 14347 | -5/Factory | Loaded intel: 8 recycling unit locations 14499 | -5/Factory | Discovered exit to Factory (range 18) 14501 | -5/Factory | Spotted B-75 Beast 14604 | -5/Factory | Crushed by falling debris 14635 | -5/Factory | Lost 3 parts (1p1n1u) 14852 | -5/Factory | Entered Upper Caves 14931 | -5/Upper Caves | Attacked by a delusional Derelict stockpiling parts 15078 | -5/Upper Caves | Discovered new exit (range 15) 15121 | -5/Upper Caves | Identified exit to Upper Caves 15122 | -5/Upper Caves | Entered another Upper Caves area 15131 | -5/Upper Caves | Learned Factory non-interactive machine intel 15141 | -5/Upper Caves | Discovered exit to Factory (range 13) 15201 | -5/Upper Caves | Spotted B-75 Beast 15367 | -5/Upper Caves | Discovered new exit (range 21) 15601 | -5/Upper Caves | Identified exit to Zhirov 15601 | -5/Upper Caves | Entered Zhirov 15601 | -5/Zhirov | Discovered new exit (range 3) 15609 | -5/Zhirov | Met Zhirov 15617 | -5/Zhirov | Learned location of Testing (-3) 15617 | -5/Zhirov | Learned location of Command (-1) 15621 | -5/Zhirov | Zhirov requested help retrieving the SGEMP Prototype 15631 | -5/Zhirov | Found Alien Artifact 15631 | -5/Zhirov | Identified Integrated Dissipator 15631 | -5/Zhirov | Installed Integrated Dissipator, increased core heat dissipation (+20) 15669 | -5/Zhirov | Identified exit to Proximity Caves 15670 | -5/Zhirov | Entered Proximity Caves 15746 | -4/Proximity Caves | Spotted B-86 Titan 15863 | -4/Proximity Caves | Learned 4 Research zone layouts 15868 | -4/Proximity Caves | Entered Factory 15868 | -4/Factory | Evolved 2 slots: Propulsion x1, Utility x1 15869 | -4/Factory | Loaded intel: 215 non-interactive machine locations 15875 | -4/Factory | Identified exit to Upper Caves 15875 | -4/Factory | Identified exit to Armory 15983 | -4/Factory | Spotted B-86 Titan 16111 | -4/Factory | Spotted B-86 Titan 16112 | -4/Factory | Loaded intel: 8 recycling unit locations 16207 | -4/Factory | Build established: Hacker-Ninja 16278 | -4/Factory | Discovered new exit (range 15) 16301 | -4/Factory | Entered Upper Caves 16361 | -4/Upper Caves | Learned Research terminal intel 16367 | -4/Upper Caves | Entered a destroyed Warlord outpost 16368 | -4/Upper Caves | Learned Research emergency access door positions 16503 | -4/Upper Caves | Attracted the attention of an 0b10 checkpoint 16513 | -4/Upper Caves | Discovered new exit (range 17) 16519 | -4/Upper Caves | Identified exit to Upper Caves 16532 | -4/Upper Caves | Encountered a Warlord checkpoint 16545 | -4/Upper Caves | Entered another Upper Caves area 16554 | -4/Upper Caves | Discovered new exit (range 16) 16558 | -4/Upper Caves | Identified exit to Research 16686 | -4/Upper Caves | Learned location of 1 exit from Proximity Caves 16688 | -4/Upper Caves | Discovered new exit (range 10) 16775 | -4/Upper Caves | Identified exit to Warlord 16775 | -4/Upper Caves | Entered Warlord 16776 | -4/Warlord | Identified exit to Proximity Caves 16794 | -4/Warlord | Opened Warlord's prototype stash 16801 | -4/Warlord | Found Prototype Device 16801 | -4/Warlord | Identified Exp. Phase Shifter 16810 | -4/Warlord | Found Prototype Hackware 16998 | -4/Warlord | Warlord's base attacked by MAIN.C 17001 | -4/Warlord | Rebuked by Warlord 17023 | -4/Warlord | Found Prototype Energy Cannon 17023 | -4/Warlord | Identified Vortex Driver 17025 | -4/Warlord | Identified Ghost Barrier 17225 | -4/Warlord | Spotted B-90 Cyclops 17254 | -4/Warlord | Found Vortex Driver 17297 | -4/Warlord | Spotted B-86 Titan 17348 | -4/Warlord | Warlord forces counterattacked 17363 | -4/Warlord | Spotted Executioner 17401 | -4/Warlord | Entered Proximity Caves 17568 | -3/Proximity Caves | Spotted B-86 Titan 17590 | -3/Proximity Caves | Attracted the attention of an 0b10 outpost 17620 | -3/Proximity Caves | Entered Research 17620 | -3/Research | Evolved 2 slots: Power x1, Utility x1 17621 | -3/Research | Identified exit to Testing 17621 | -3/Research | Identified exit to Research 17623 | -3/Research | Loaded intel: 23 terminal locations 17675 | -3/Research | Loaded intel: 5 recycling unit locations 17686 | -3/Research | Targeted by mysterious "MATRIX" hacker. 17796 | -3/Research | Entered Testing 17858 | -3/Testing | Found Prototype Device 17858 | -3/Testing | Identified Exp. Shield Generator 17900 | -3/Testing | Discovered exit to Research (range 19) 17974 | -3/Testing | Entered Research 17974 | -2/Research | Evolved 2 slots: Propulsion x1, Utility x1 17975 | -2/Research | Identified exit to Access 17989 | -2/Research | Identified exit to Quarantine 18006 | -2/Research | Spotted B-90 Cyclops 18016 | -2/Research | Discovered exit to Access (range 8) 18066 | -2/Research | Build established: Wizard-Ninja 18201 | -2/Research | Lost 4 parts (1p1n2u) 18204 | -2/Research | Spotted B-90 Cyclops 18217 | -2/Research | Entered Quarantine 18343 | -2/Quarantine | Found Fusion Bomb Launcher 18382 | -2/Quarantine | Cryocooling Duct disabled 18392 | -2/Quarantine | Found Alien Artifact 18392 | -2/Quarantine | Identified Phase Redirector 18397 | -2/Quarantine | Ambient heat levels rising (+20) 18397 | -2/Quarantine | Non-combat units ordered to evacuate 18408 | -2/Quarantine | Found Alien Artifact 18408 | -2/Quarantine | Identified Subatomic Replicator 18419 | -2/Quarantine | Found Alien Impact Weapon 18419 | -2/Quarantine | Identified Core Stripper 18451 | -2/Quarantine | Found Alien Energy Cannon 18451 | -2/Quarantine | Identified Core Cannon 18467 | -2/Quarantine | Search patrols dispatched 18485 | -2/Quarantine | Build established: Hacker-Scout 18517 | -2/Quarantine | Lost 3 parts (1p1n1u) 18518 | -2/Quarantine | Found Alien Artifact 18523 | -2/Quarantine | Found Alien Artifact 18551 | -2/Quarantine | Found Alien Reactor 18551 | -2/Quarantine | Identified Matter Drive 18598 | -2/Quarantine | Lost 4 parts (2n2u) 18602 | -2/Quarantine | Spotted Fortress 18616 | -2/Quarantine | Discovered new exit (range 6) 18616 | -2/Quarantine | Discovered new exit (range 6) 18617 | -2/Quarantine | Identified exit to Section 7 18617 | -2/Quarantine | Identified exit to Protoforge 18618 | -2/Quarantine | Entered Protoforge 18656 | -2/Protoforge | Spotted Hotshot 18657 | -2/Protoforge | Spotted Hotshot 18657 | -2/Protoforge | Superfortress began startup sequence 18685 | -2/Protoforge | Spotted Hotshot 18685 | -2/Protoforge | Spotted Hotshot 18690 | -2/Protoforge | Spotted AP7-3 18690 | -2/Protoforge | Spotted AP7-3 18698 | -2/Protoforge | Spotted Overlord 18707 | -2/Protoforge | Spotted EXE-6 18707 | -2/Protoforge | Spotted EXE-6 18720 | -2/Protoforge | UFD initiated attack on Protoforge (Readiness: Maximal) 18720 | -2/Protoforge | Loaded intel: 3 recycling unit locations 18724 | -2/Protoforge | Lost 4 parts (4n) 18733 | -2/Protoforge | Scraphulk reinforcements arrived 18743 | -2/Protoforge | Scraphulk reinforcements arrived? 18745 | -2/Protoforge | Found Prototype Processor 18745 | -2/Protoforge | Identified Exp. Core Analyzer 18749 | -2/Protoforge | Found Scrap Suit 18751 | -2/Protoforge | Found Exp. Core Analyzer 18756 | -2/Protoforge | Optimus greeted in Protoforge 18772 | -2/Protoforge | Found Prototype Processor 18772 | -2/Protoforge | Identified Exp. Armor Integrity Analyzer 18775 | -2/Protoforge | P-80 Master assimilated allied 40-H3V(j) 18775 | -2/Protoforge | Found Prototype Ballistic Gun 18775 | -2/Protoforge | Identified Cep. XC Strikerail 18812 | -2/Protoforge | Lost 10 allies 18819 | -2/Protoforge | Spotted Decapitator 18819 | -2/Protoforge | Spotted Decapitator 18852 | -2/Protoforge | Lost 6 allies 18854 | -2/Protoforge | Spotted EXE-6 18855 | -2/Protoforge | Spotted EXE-6 18867 | -2/Protoforge | Destroyed EXE-6 18872 | -2/Protoforge | Destroyed EXE-6 18884 | -2/Protoforge | Found Exp. Core Analyzer 18887 | -2/Protoforge | Found Cep. XC Strikerail 18891 | -2/Protoforge | Found Cep. XC Strikerail 18898 | -2/Protoforge | Met 7R-MNS 18920 | -2/Protoforge | Identified Terrabomb 18920 | -2/Protoforge | Used Terrabomb 18925 | -2/Protoforge | Spotted Striker 18926 | -2/Protoforge | Spotted Striker 18980 | -2/Protoforge | P-80 Master assimilated allied 02F07-K 18982 | -2/Protoforge | Spotted Executioner 18990 | -2/Protoforge | Spotted Executioner 19012 | -2/Protoforge | Allies destroyed Executioner 19016 | -2/Protoforge | Destroyed 7 combat bots 19017 | -2/Protoforge | Found Prototype Processor 19017 | -2/Protoforge | Identified Exp. Targeting Computer 19020 | -2/Protoforge | UFD reported confirmed Drillbomb installation 19038 | -2/Protoforge | Build established: Scavenger-Gunner 19049 | -2/Protoforge | Spotted Executioner 19050 | -2/Protoforge | Spotted Striker 19073 | -2/Protoforge | Destroyed Striker 19084 | -2/Protoforge | Spotted Executioner 19085 | -2/Protoforge | Spotted Executioner 19104 | -2/Protoforge | Destroyed Executioner 19105 | -2/Protoforge | Core integrity fell below 50% 19106 | -2/Protoforge | Allies destroyed Executioner 19112 | -2/Protoforge | Lost 3 allies 19149 | -2/Protoforge | Spotted Executioner 19164 | -2/Protoforge | Spotted Executioner 19203 | -2/Protoforge | Destroyed Executioner 19295 | -2/Protoforge | UFD reported confirmed Drillbomb installation 19336 | -2/Protoforge | Lost 3 allies 19379 | -2/Protoforge | Spotted Striker 19381 | -2/Protoforge | Spotted Executioner 19387 | -2/Protoforge | Destroyed Executioner 19400 | -2/Protoforge | Spotted Executioner 19441 | -2/Protoforge | Found 0bPrime Scrap Suit 19453 | -2/Protoforge | Spotted Executioner 19467 | -2/Protoforge | Spotted Executioner 19470 | -2/Protoforge | Spotted Executioner 19478 | -2/Protoforge | Lost 11 allies 19483 | -2/Protoforge | System corruption reached 10% 19491 | -2/Protoforge | Destroyed Executioner 19507 | -2/Protoforge | Destroyed Executioner 19540 | -2/Protoforge | P-80 Master assimilated allied 02F90-D 19542 | -2/Protoforge | P-80 Master assimilated allied 02F87-D 19549 | -2/Protoforge | P-80 Master assimilated allied Lugger 175 19551 | -2/Protoforge | Lost 4 allies 19568 | -2/Protoforge | Spotted Striker 19571 | -2/Protoforge | Spotted Striker 19589 | -2/Protoforge | Lost 3 allies 19635 | -2/Protoforge | Found UFD Drillbomb 19635 | -2/Protoforge | Spotted Striker 19637 | -2/Protoforge | Spotted Striker 19647 | -2/Protoforge | Spotted Striker 19649 | -2/Protoforge | Destroyed Striker 19652 | -2/Protoforge | Spotted Hotshot 19661 | -2/Protoforge | Destroyed Striker 19662 | -2/Protoforge | Spotted Striker 19665 | -2/Protoforge | Spotted Striker 19748 | -2/Protoforge | Destroyed Striker 19779 | -2/Protoforge | Lost 14 allies 19928 | -2/Protoforge | Spotted Striker 19928 | -2/Protoforge | Spotted Executioner 19931 | -2/Protoforge | Destroyed Executioner 20008 | -2/Protoforge | Spotted Executioner 20009 | -2/Protoforge | Spotted Executioner 20027 | -2/Protoforge | Spotted Striker 20031 | -2/Protoforge | Spotted Striker 20095 | -2/Protoforge | Spotted Executioner 20143 | -2/Protoforge | Spotted Executioner 20166 | -2/Protoforge | Spotted Executioner 20219 | -2/Protoforge | P-80 Master assimilated allied Lugger 717 20244 | -2/Protoforge | Lost 14 allies 20295 | -2/Protoforge | P-80 Master assimilated allied 02FCN-D 20321 | -2/Protoforge | Spotted Striker 20323 | -2/Protoforge | Lost 4 allies 20323 | -2/Protoforge | Spotted Striker 20328 | -2/Protoforge | Spotted Striker 20329 | -2/Protoforge | Spotted Executioner 20354 | -2/Protoforge | Spotted Executioner 20362 | -2/Protoforge | Destroyed Striker 20364 | -2/Protoforge | Spotted Executioner 20369 | -2/Protoforge | Core integrity fell below 20% 20385 | -2/Protoforge | Lost 4 parts (2n2u) 20394 | -2/Protoforge | P-80 Master assimilated allied 02FCV-D 20423 | -2/Protoforge | Spotted Striker 20425 | -2/Protoforge | Spotted Striker 20434 | -2/Protoforge | Destroyed Executioner 20441 | -2/Protoforge | Lost 12 allies 20450 | -2/Protoforge | Destroyed Executioner 20471 | -2/Protoforge | Destroyed 8 combat bots 20568 | -2/Protoforge | UFD reported confirmed Drillbomb installation 20632 | -2/Protoforge | Spotted Executioner 20636 | -2/Protoforge | Spotted Striker 20672 | -2/Protoforge | UFD reported confirmed Drillbomb installation 20732 | -2/Protoforge | Spotted Striker 20734 | -2/Protoforge | Spotted Striker 20750 | -2/Protoforge | Found Exp. Core Analyzer 20751 | -2/Protoforge | Destroyed Striker 20779 | -2/Protoforge | Spotted Executioner 20780 | -2/Protoforge | Destroyed Executioner 20889 | -2/Protoforge | Spotted Immortal 20894 | -2/Protoforge | Spotted Immortal 20895 | -2/Protoforge | Spotted Immortal 20909 | -2/Protoforge | Spotted Striker 20911 | -2/Protoforge | Spotted Executioner 20935 | -2/Protoforge | Destroyed by Striker with Plasma Lance Last Messages --------------- (Destroy). 20901_ Lugger 221 destroyed. 20901_ Slug penetrates Immortal. 20905_ 0bP_NET: Lugger 459 inbound, all units not involved in other operations escort to target. 20907_ System corrupted: Helical Railgun jammed. 20907_ Slug penetrates Concept Prefabricator. 20917_ Penetrated by Slug. 20918_ System corrupted: Matter fused (-6). 20928_ Slug penetrates Door. 20928_ Frame Tuner disabled. 20928_ Slug penetrates Striker. 20928_ Slug penetrates Wall. 20931_ System corrupted: Helical Railgun jammed. 20931_ Slug penetrates Frame Tuner. 20931_ Pattern Transfigurator disabled. 20933_ YPYH2P735VSK GW< E #RV1XAXHR OAC 35 Map ----- +----------------------------------------------------+ | ####????#????????????# =% ![!=&%%" "#""%%= | | #########????????????# !%[!%!%%%!%"%% %%!% | | #########????????????##"=%[[!==!%% % %%=[ | | # ##?????##????????????##"!=! &&!=###=![="*= | | # ##?????##????????????### **%#####[% * ! | | # ##?????##????????????### [%=!#######"[= | | # ##?????##????????????### ! #? !%# | | # ######################## # """ [# # | | # ########################"" # """ # # | | # #???????????##???## # # """ ### | | # #???????????##???## # + """! ##? | | # #???????????##???## # # """%[ ##? | | # #???????????##???## l# # """= ##? | | # #???????????##???##"""" # ! # """ ##? | | # +???????????##???##"""" E# #? ##? | | # #???????????#######"""" # ###########? | | # ###################"""" # #####?#####? | | ###### #"""" ; ##?##?##?### | | ?? ##??## ;" " # ##?##?###### | | ##?### ##??## """ """ ; # ##?##?##### | | ?????# ##??## """ """ ;;;;;### ##?##?????# | | ?????# ##??##"" """ """ # ##?######## | | ?????# ##??##"" ; !! ##?######## | | ?????# ##??##"" """ """ ; !%! ##???????## | | ?????# ##??##S """ "" !K === ########### | | ?????# ##??##?" """%"""@!;;# ##% ########### | | ?????# ##??##"" % %!%** # ###== #?????????#? | | ?????# ##??##"" !=!!= ## "##%%* #?????????#? | | ?????# ###### %%=%[#### "#"% #?????????#? | | ?????# ############# ;;###### ##" =%*""????????#? | | ?????# ## ###### ###### ##" [%=#""???????#? | | ###### ## """ ############# "##!*= #"" ??????## | | ###### ## """ ##???########""##/ % "? ??????## | | ????## ## """ ##???## # % %# ????????## | | ????## ## """"##???## #% ###?######## | | ????## ## """"####### # ??????????? | | ????## ## """"####### """ """ # ??????????? | | ????## ## + + """ ""| # ??????????? | | ????## ## ####### """ """*#% ?????????????? | | ????## ## ####### %#????####?####### | | ?##### ## ####### #????#??????????? | | ?##### #####+#############+######????#??????????? | | ?## ????#??????????? | | ?## ????#??????????? | | ?## """ """ """ ???????????????? | | ?## """ """ "????????????#??????????? | | ?#####+###### """ """???????########??????????? | | ?## ## """ """???????########??????????? | | ?## """" ## """ """???????#####?##??????????? | | ?## """" ## """ """??????????##?##??????????? | +----------------------------------------------------+ Best States ------------- Heat Dissipation 95 Energy Generation 45 Energy Capacity 675 Matter Stores 300 Matter Capacity 300 Sight Range 23 Robot Scan Range 19 Terrain Scan Range 20 Terrain Scan Density 1210 Jamming Range 14 Cloak Strength 3 Power Amplification 20 Armor Coverage 1100 Resistance: TH 10 Propulsion Shielding 90 Phase Shifting 20 Evasion (%) 97 Targeting Accuracy 12 Launcher Accuracy 70 Target Analysis 12 Core Analysis 12 Armor Integrity Analysis 50 Recoil Reduction 3 Kinecelleration 30 Salvage Targeting 4 Offensive Hacking 48 Defensive Hacking 34 Authchip Count 1 Item Schematics ----------------- Utility Shielding | -10/Materials | Hacked Med. Storage Unit | -9/Materials | Hacked Lrg. Storage Unit | -9/Materials | Hacked Microactuators | -8/Materials | Scanalyzed Melee Analysis Suite | -8/Materials | Scanalyzed Enh. Optical Array | -8/Recycling | Hacked Reaction Control System | -8/Recycling | Hacked Imp. Utility Shielding | -8/Recycling | Hacked Imp. Propulsion Shielding | -8/Recycling | Hacked Cld. VTOL Module | -6/Factory | Hacked Cld. Cesium-ion Thruster | -6/Factory | Scanalyzed Combat Drone Bay | -6/Data Miner | Free Lgt. Regenerative Plating | -6/Data Miner | Free Enh. Armored Leg | -6/Data Miner | Free Prc. Matter Filter | -6/Data Miner | Free Neutron Cannon | -6/Data Miner | Free Adv. Medium Treads | -6/Data Miner | Free Imp. Point Defense System | -6/Data Miner | Free Phase Gun | -6/Data Miner | Free Impulse Thruster | -6/Data Miner | Free Railgun | -6/Data Miner | Free Lgt. Particle Reactor | -6/Data Miner | Free Nova Cannon | -6/Data Miner | Free Adv. Terrain Scanner | -5/Factory | Scanalyzed Assault Drone Bay | -5/Zhirov | Free Exp. Heat Sink | -5/Zhirov | Free Exp. Optical Array | -5/Zhirov | Free Imp. Arc Thrower | -5/Zhirov | Free Robot Schematics ------------------ R-10 Processor | -6/Data Miner | Free G-50 Soldier | -6/Data Miner | Free Y-54 Guardian | -6/Data Miner | Free A-27 Freighter | -6/Data Miner | Free Fabricated ------------ Cld. VTOL Module | x1 | -6/Factory Cld. Cesium-ion Thruster | x1 | -6/Factory Repaired ---------- Imp. Treads | 60% | -8/Materials Cld. Cesium-ion Thruster | 99% | -6/Factory | Broken Studied --------- Shotgun | -9/Materials | Hacked Lgt. Treads | -9/Materials | Hacked Arm. Treads | -8/Materials | Hacked Cesium-ion Thruster | -6/Factory | Hacked Nuclear Pulse Thruster | -6/Factory | Hacked Lgt. Antimatter Reactor | -3/Research | Hacked Xenon Bombardment Thruster | -3/Research | Hacked Micro-nuke Launcher | -3/Testing | Hacked Neutrino Core | -2/Protoforge | Hacked Alien Tech Used ----------------- Core Expander Integrated Dissipator Phase Redirector Subatomic Replicator Core Stripper Core Cannon Matter Drive Terrabomb Achievements -------------- Express Service Speed Demon The Better Part Of Valor Treasure Hunter UFD MVP Whoosh! Challenges ------------ None Game ------ Seed BottomlessRiotMiniperforator Manual? 0 Play Time 04:36:09 Cumulative 125.7 hours Start 2026.03.07 @ 10:58:21 End 2026.03.07 @ 18:05:39 Sessions 19 Manual Loads 0 Difficulty Rogue Special Mode None Game No. 143 Rogue 68 Adventurer 75 Explorer 0 Win Type - Total 4 Types 4/0/0/0/0/0/0/0/0/0 Lore% 58 Gallery% 56 Achievement% 46 Wizard Run 0 Options --------- Layout 2 ASCII 0 Keyboard 0 Movement Numpad Keybinds 0 Fullscreen 2 Font 24/Smallcaps Map View 50x44 Zoom Use 0% Tactical HUD 1 Map Filters NONE Filters NONE Steam 1 RUN: 6d45e735-7e4d-4d1a-a152-4e1aa0903d47